Body,Body Name,Date,TransNo,Amount � (Excl VAT),Supplier name,Description,Expense Area,Expense Type,Expense Code,
http://opendatacommunities.org/id/london-borough-council/sutton,London Borough of Sutton,07/12/2020,1309207,34.80 , STK SHUTTERSTOCK,SHUTTERSTOCK PURCHASE,Peoples Services Directorate,Other Services,F340,
http://opendatacommunities.org/id/london-borough-council/sutton,London Borough of Sutton,14/12/2020,1309207,12.08 , AMAZON.CO.UK MS5KJ2XB4,TOYS AND EQUIPMENT,Health and Wellbeing Directorate,Education Equipment,F009,
http://opendatacommunities.org/id/london-borough-council/sutton,London Borough of Sutton,30/11/2020,1309207,24.16 , ARGOS LTD,ELECTRICAL (AMAZON ALEXA),Health and Wellbeing Directorate,Education Equipment,F009,
http://opendatacommunities.org/id/london-borough-council/sutton,London Borough of Sutton,23/12/2020,1309207,8.32 , TWINKL LIMITED,TWINKL SUBSCRIPTION,Health and Wellbeing Directorate,Education Equipment,F009,
http://opendatacommunities.org/id/london-borough-council/sutton,London Borough of Sutton,19/12/2020,1309207,19.44 , TESCO STORE 3235,GROCERIES,Health and Wellbeing Directorate,Provisions - General,F150,
http://opendatacommunities.org/id/london-borough-council/sutton,London Borough of Sutton,14/12/2020,1309207,31.33 , ASDA SUPERSTORE,GROCERIES,Health and Wellbeing Directorate,Provisions - General,F150,
http://opendatacommunities.org/id/london-borough-council/sutton,London Borough of Sutton,07/12/2020,1309207,27.35 , ASDA SUPERSTORE,GROCERIES,Health and Wellbeing Directorate,Provisions - General,F150,
http://opendatacommunities.org/id/london-borough-council/sutton,London Borough of Sutton,26/11/2020,1309207,8.33 , ASDA SUPERSTORE,PLANTS,Health and Wellbeing Directorate,Provisions - General,F150,
http://opendatacommunities.org/id/london-borough-council/sutton,London Borough of Sutton,30/11/2020,1309207,26.94 , ASDA SUPERSTORE,GROCERIES,Health and Wellbeing Directorate,Refreshments,F155,
http://opendatacommunities.org/id/london-borough-council/sutton,London Borough of Sutton,14/12/2020,1309207,79.12 , BOOTS.COM,REQUESTED BY SOCIAL WORKER,Peoples Services Directorate,Personal Requisites,F106,
http://opendatacommunities.org/id/london-borough-council/sutton,London Borough of Sutton,19/12/2020,1309207,20.00 , OYSTER BUS AUTOLOAD,OYSTER CARD AUTO TOP-UP,Peoples Services Directorate,Travelling and Subsistence Allowances,A530,
http://opendatacommunities.org/id/london-borough-council/sutton,London Borough of Sutton,02/12/2020,1309207,25.00 , OYSTER ONLINE,NEW OYSTER CARD PURCHASE,Peoples Services Directorate,Travelling and Subsistence Allowances,A530,
http://opendatacommunities.org/id/london-borough-council/sutton,London Borough of Sutton,17/12/2020,1309207,2.48 , CARD FACTORY,EU - PERSONAL ALLOWANCE,Peoples Services Directorate,Other Services,F340,
http://opendatacommunities.org/id/london-borough-council/sutton,London Borough of Sutton,17/12/2020,1309207,12.57 , NEW LOOK 1985,EU - PERSONAL ALLOWANCE,Peoples Services Directorate,Other Services,F340,
http://opendatacommunities.org/id/london-borough-council/sutton,London Borough of Sutton,17/12/2020,1309207,56.67 , PRIMARK,EU - PERSONAL ALLOWANCE,Peoples Services Directorate,Other Services,F340,
http://opendatacommunities.org/id/london-borough-council/sutton,London Borough of Sutton,15/12/2020,1309207,19.17 , TREATWELL,EU - PERSONAL ALLOWANCE,Peoples Services Directorate,Other Services,F340,
http://opendatacommunities.org/id/london-borough-council/sutton,London Borough of Sutton,14/12/2020,1309207,47.50 , TULLEYS ENTERTAINMENT,EU AND SISTERS - ACTIVITY,Peoples Services Directorate,Other Services,F340,
http://opendatacommunities.org/id/london-borough-council/sutton,London Borough of Sutton,14/12/2020,1309207,39.64 , ASDA GROCERIES ONLINE,WEEKLY SHOP,Peoples Services Directorate,Other Services,F340,
http://opendatacommunities.org/id/london-borough-council/sutton,London Borough of Sutton,14/12/2020,1309207,(0.39), ASDA GROCERIES ONLINE,WEEKLY SHOP - PRICE ADJUSTED,Peoples Services Directorate,Other Services,F340,
http://opendatacommunities.org/id/london-borough-council/sutton,London Borough of Sutton,11/12/2020,1309207,27.50 , WWW.BOOKING.GLL.ORG,EU - ACTIVITY,Peoples Services Directorate,Other Services,F340,
http://opendatacommunities.org/id/london-borough-council/sutton,London Borough of Sutton,11/12/2020,1309207,25.86 , ASDA GROCERIES ONLINE,HOUSEHOLD ITEMS,Peoples Services Directorate,Other Services,F340,
http://opendatacommunities.org/id/london-borough-council/sutton,London Borough of Sutton,10/12/2020,1309207,5.00 , ASDA STORES 7134,WEEKLY DELIVERY CHARGE,Peoples Services Directorate,Other Services,F340,
http://opendatacommunities.org/id/london-borough-council/sutton,London Borough of Sutton,07/12/2020,1309207,39.21 , ASDA GROCERIES ONLINE,WEEKLY SHOP,Peoples Services Directorate,Other Services,F340,
http://opendatacommunities.org/id/london-borough-council/sutton,London Borough of Sutton,07/12/2020,1309207,38.36 , ASDA GROCERIES ONLINE,WEEKLY SHOP,Peoples Services Directorate,Other Services,F340,
http://opendatacommunities.org/id/london-borough-council/sutton,London Borough of Sutton,07/12/2020,1309207,(0.07), ASDA GROCERIES ONLINE,WEEKLY SHOP - PRICE ADJUSTMENT,Peoples Services Directorate,Other Services,F340,
http://opendatacommunities.org/id/london-borough-council/sutton,London Borough of Sutton,06/12/2020,1309207,4.67 , UBER    TRIP,EU - CANCELLED JOURNEY,Peoples Services Directorate,Other Services,F340,
http://opendatacommunities.org/id/london-borough-council/sutton,London Borough of Sutton,19/12/2020,1309207,16.67 , NEW LOOK 1985,EU - PERSONAL ALLOWANCE,Peoples Services Directorate,Other Services,F340,
http://opendatacommunities.org/id/london-borough-council/sutton,London Borough of Sutton,19/12/2020,1309207,28.33 , PRIMARK,EU - PERSONAL ALLOWANCE,Peoples Services Directorate,Other Services,F340,
http://opendatacommunities.org/id/london-borough-council/sutton,London Borough of Sutton,18/12/2020,1309207,5.07 , BUDGENS,WEEKLY TAKEAWAY,Peoples Services Directorate,Other Services,F340,
http://opendatacommunities.org/id/london-borough-council/sutton,London Borough of Sutton,17/12/2020,1309207,3.47 , MCDONALDS,EU - LUNCH,Peoples Services Directorate,Other Services,F340,
http://opendatacommunities.org/id/london-borough-council/sutton,London Borough of Sutton,17/12/2020,1309207,1.67 , POUNDLAND LTD,HOUSEHOLD ITEMS,Peoples Services Directorate,Other Services,F340,
http://opendatacommunities.org/id/london-borough-council/sutton,London Borough of Sutton,17/12/2020,1309207,2.48 , SUPERDRUG STORES PLC,EU - PERSONAL ALLOWANCE,Peoples Services Directorate,Other Services,F340,
http://opendatacommunities.org/id/london-borough-council/sutton,London Borough of Sutton,17/12/2020,1309207,2.49 , H & M,EU - PERSONAL ALLOWANCE,Peoples Services Directorate,Other Services,F340,
http://opendatacommunities.org/id/london-borough-council/sutton,London Borough of Sutton,06/12/2020,1309207,(4.67), UBER    TRIP,EU - CANCELLED JOURNEY,Peoples Services Directorate,Other Services,F340,
http://opendatacommunities.org/id/london-borough-council/sutton,London Borough of Sutton,03/12/2020,1309207,10.82 , FONES FUSION,EU - PHONE,Peoples Services Directorate,Other Services,F340,
http://opendatacommunities.org/id/london-borough-council/sutton,London Borough of Sutton,03/12/2020,1309207,8.32 , FONES FUSION,EU - PHONE,Peoples Services Directorate,Other Services,F340,
http://opendatacommunities.org/id/london-borough-council/sutton,London Borough of Sutton,30/11/2020,1309207,51.46 , B & Q 1191,HOUSEHOLD ITEMS,Peoples Services Directorate,Other Services,F340,
http://opendatacommunities.org/id/london-borough-council/sutton,London Borough of Sutton,30/11/2020,1309207,3.96 , ASDA STORES,WEEKLY SHOP,Peoples Services Directorate,Other Services,F340,
http://opendatacommunities.org/id/london-borough-council/sutton,London Borough of Sutton,30/11/2020,1309207,3.29 , GREGGS PLC,EU - LUNCH,Peoples Services Directorate,Other Services,F340,
http://opendatacommunities.org/id/london-borough-council/sutton,London Borough of Sutton,30/11/2020,1309207,53.24 , ASDA GROCERIES ONLINE,WEEKLY SHOP,Peoples Services Directorate,Other Services,F340,
http://opendatacommunities.org/id/london-borough-council/sutton,London Borough of Sutton,27/11/2020,1309207,5.32 , BUDGENS,WEEKLY TAKEAWAY,Peoples Services Directorate,Other Services,F340,
http://opendatacommunities.org/id/london-borough-council/sutton,London Borough of Sutton,28/12/2020,1309207,40.27 , ASDA GROCERIES ONLINE,WEEKLY SHOP,Peoples Services Directorate,Other Services,F340,
http://opendatacommunities.org/id/london-borough-council/sutton,London Borough of Sutton,28/12/2020,1309207,(0.70), ASDA GROCERIES ONLINE,WEEKLY SHOP - PRICE ADJUSTEMENT,Peoples Services Directorate,Other Services,F340,
http://opendatacommunities.org/id/london-borough-council/sutton,London Borough of Sutton,21/12/2020,1309207,41.34 , ASDA STORES,WEEKLY SHOP,Peoples Services Directorate,Other Services,F340,
http://opendatacommunities.org/id/london-borough-council/sutton,London Borough of Sutton,19/12/2020,1309207,8.33 , ASDA STORES,EU - PERSONAL ALLOWANCE,Peoples Services Directorate,Other Services,F340,
http://opendatacommunities.org/id/london-borough-council/sutton,London Borough of Sutton,19/12/2020,1309207,12.52 , SUPERDRUG STORES PLC,EU - PERSONAL ALLOWANCE,Peoples Services Directorate,Other Services,F340,
http://opendatacommunities.org/id/london-borough-council/sutton,London Borough of Sutton,19/12/2020,1309207,4.17 , MCDONALDS,EU - LUNCH,Peoples Services Directorate,Other Services,F340,
http://opendatacommunities.org/id/london-borough-council/sutton,London Borough of Sutton,19/12/2020,1309207,15.87 , H & M,EU - PERSONAL ALLOWANCE,Peoples Services Directorate,Other Services,F340,
http://opendatacommunities.org/id/london-borough-council/sutton,London Borough of Sutton,19/12/2020,1309207,16.74 , T K MAXX,EU - PERSONAL ALLOWANCE,Peoples Services Directorate,Other Services,F340,
http://opendatacommunities.org/id/london-borough-council/sutton,London Borough of Sutton,19/12/2020,1309207,2.50 , WILKO RETAIL LIMITED,EU - PERSONAL ALLOWANCE,Peoples Services Directorate,Other Services,F340,
http://opendatacommunities.org/id/london-borough-council/sutton,London Borough of Sutton,11/12/2020,1309207,320.00 , SURVEYMONKEY,SUBSCRIPTION NEEDED FOR IYS TEAM,Peoples Services Directorate,Subscriptions - General,F450,
http://opendatacommunities.org/id/london-borough-council/sutton,London Borough of Sutton,26/11/2020,1309207,26.66 , WWW.INSTANTPRINT.C,VISITOR BADGE INSERTS,Peoples Services Directorate,Administrative Equipment,F001,
http://opendatacommunities.org/id/london-borough-council/sutton,London Borough of Sutton,30/11/2020,1309207,950.00 , PALISADESECURE.COM,LICENCES - IT,Peoples Services Directorate,IT Licences,F385,
http://opendatacommunities.org/id/london-borough-council/sutton,London Borough of Sutton,10/12/2020,1309207,50.00 , PAYPAL  LEARNINGSKI,FE WEEK ANNUAL SUBSCRIPTION,Peoples Services Directorate,Subscriptions - General,F450,
http://opendatacommunities.org/id/london-borough-council/sutton,London Borough of Sutton,07/12/2020,1309207,23.00 , WWW.BLOOMANDWILD.COM,RETIREMENT FLOWERS AUDREY COOPER,Peoples Services Directorate,Miscellaneous Expenses,F620,
http://opendatacommunities.org/id/london-borough-council/sutton,London Borough of Sutton,26/11/2020,1309207,165.83 , AMAZON.CO.UK MY07B5084,BROTHER OVERHEAD LOCKER FOR SEWING ROOM.  SMALL PROJECTS BID,Peoples Services Directorate,Education Equipment,F009,
http://opendatacommunities.org/id/london-borough-council/sutton,London Borough of Sutton,29/11/2020,1309207,735.77 , AMZNMKTPLACE AMAZON.CO,JT AMAZON MATS & WEBCAMS 735.77+44.90 780.97,Peoples Services Directorate,Purchase of IT Equipment,F380,
http://opendatacommunities.org/id/london-borough-council/sutton,London Borough of Sutton,26/11/2020,1309207,31.43 , AMZNMKTPLACE AMAZON.CO,JT AMAZON MATS & WEBCAMS 735.77+44.90 780.97,Peoples Services Directorate,Purchase of IT Equipment,F380,
http://opendatacommunities.org/id/london-borough-council/sutton,London Borough of Sutton,26/11/2020,1309207,13.47 , AMZNMKTPLACE AMAZON.CO,JT AMAZON MATS & WEBCAMS 735.77+44.90 780.97,Peoples Services Directorate,Purchase of IT Equipment,F380,
http://opendatacommunities.org/id/london-borough-council/sutton,London Borough of Sutton,26/11/2020,1309207,78.96 , AMZNMKTPLACE AMAZON.CO,10X USB HEADSET,Peoples Services Directorate,Purchase of IT Equipment,F380,
http://opendatacommunities.org/id/london-borough-council/sutton,London Borough of Sutton,30/11/2020,1309207,345.23 , FACEBK 9VES8W27A2,FACEBOOK 30TH NOVEMBER 2020 ART GENERIC AND LONDON ALT 345.23,Peoples Services Directorate,Advertising/Publicity (non Staff),F240,
http://opendatacommunities.org/id/london-borough-council/sutton,London Borough of Sutton,30/11/2020,1309207,113.80 , MAILCHIMP,MAILCHIMP 301120 113.80,Peoples Services Directorate,Advertising/Publicity (non Staff),F240,
http://opendatacommunities.org/id/london-borough-council/sutton,London Borough of Sutton,16/12/2020,1309207,149.54 , DULUX DECORATOR CENTRE,DULUX PAINT FOR DECORATING BOTH SUTTON AND WALLINGTON CENTRE,Peoples Services Directorate,General Maintenance,D500,
http://opendatacommunities.org/id/london-borough-council/sutton,London Borough of Sutton,26/11/2020,1309207,33.12 , MARK FISHER,5 BAGS OF ROCK SALT,Peoples Services Directorate,Other Premises Costs,D715,
http://opendatacommunities.org/id/london-borough-council/sutton,London Borough of Sutton,09/12/2020,1309207,8.12 , ASDA STORES,COOKERY INGREDIENTS,Peoples Services Directorate,Education Equipment,F009,
http://opendatacommunities.org/id/london-borough-council/sutton,London Borough of Sutton,04/12/2020,1309207,9.04 , WM MORRISONS STORE,COOKERY INGREDIENTS,Peoples Services Directorate,Education Equipment,F009,
http://opendatacommunities.org/id/london-borough-council/sutton,London Borough of Sutton,02/12/2020,1309207,11.91 , SAINSBURYS SACAT 2006,COOKERY INGREDIENTS,Peoples Services Directorate,Education Equipment,F009,
http://opendatacommunities.org/id/london-borough-council/sutton,London Borough of Sutton,27/11/2020,1309207,11.85 , WM MORRISONS STORE,COOKERY INGREDIENTS,Peoples Services Directorate,Education Equipment,F009,
http://opendatacommunities.org/id/london-borough-council/sutton,London Borough of Sutton,21/12/2020,1309207,10.00 , AMAZON.CO.UK MS2VE6RN4,SPLIT - AMAZON LOGO SQUID - AMAZON.CO.UK EGIFT VOUCHER (100%),Peoples Services Directorate,Personal Requisites,F106,
http://opendatacommunities.org/id/london-borough-council/sutton,London Borough of Sutton,21/12/2020,1309207,10.00 , AMAZON.CO.UK MS8V50RH4,SPLIT - AMAZON LOGO SQUID - AMAZON.CO.UK EGIFT VOUCHER (100%),Peoples Services Directorate,Personal Requisites,F106,
http://opendatacommunities.org/id/london-borough-council/sutton,London Borough of Sutton,04/12/2020,1309207,116.67 , ARGOS LTD,ITEMS NEEDED FOR CARE LEAVER,Peoples Services Directorate,Personal Requisites,F106,
http://opendatacommunities.org/id/london-borough-council/sutton,London Borough of Sutton,04/12/2020,1309207,107.50 , ARGOS LTD,ITEMS NEEDED FOR CARE LEAVER,Peoples Services Directorate,Personal Requisites,F106,
http://opendatacommunities.org/id/london-borough-council/sutton,London Borough of Sutton,04/12/2020,1309207,85.79 , ARGOS LTD,ITEMS NEEDED FOR CARE LEAVER,Peoples Services Directorate,Personal Requisites,F106,
http://opendatacommunities.org/id/london-borough-council/sutton,London Borough of Sutton,04/12/2020,1309207,107.50 , ARGOS LTD,ITEMS NEEDED FOR CARE LEAVER,Peoples Services Directorate,Personal Requisites,F106,
http://opendatacommunities.org/id/london-borough-council/sutton,London Borough of Sutton,04/12/2020,1309207,190.00 , ARGOS LTD,ITEMS NEEDED FOR CARE LEAVER,Peoples Services Directorate,Personal Requisites,F106,
http://opendatacommunities.org/id/london-borough-council/sutton,London Borough of Sutton,04/12/2020,1309207,(190.00), ARGOS LTD,REFUND FROM ARGOS,Peoples Services Directorate,Personal Requisites,F106,
http://opendatacommunities.org/id/london-borough-council/sutton,London Borough of Sutton,04/12/2020,1309207,(107.50), ARGOS LTD,REFUND FROM ARGOS,Peoples Services Directorate,Personal Requisites,F106,
http://opendatacommunities.org/id/london-borough-council/sutton,London Borough of Sutton,03/12/2020,1309207,8.37 , AMAZON.CO.UK MY3N92S64,"SPLIT - DER-FRANZ - CHAI LATTE - SPICY, WARMING AND FAR-EASTERN, 500 G (61.23%)",Peoples Services Directorate,Personal Requisites,F106,
http://opendatacommunities.org/id/london-borough-council/sutton,London Borough of Sutton,03/12/2020,1309207,1.56 , AMAZON.CO.UK MY3N92S64,SPLIT - MILKA CHOCOLATE BISCUITS 150G (11.41%),Peoples Services Directorate,Personal Requisites,F106,
http://opendatacommunities.org/id/london-borough-council/sutton,London Borough of Sutton,03/12/2020,1309207,3.74 , AMAZON.CO.UK MY3N92S64,BALANCING ENTRY AMOUNT (27.36%),Peoples Services Directorate,Personal Requisites,F106,
http://opendatacommunities.org/id/london-borough-council/sutton,London Borough of Sutton,02/12/2020,1309207,8.36 , AMAZON.CO.UK MY9W37DL4,"SPLIT - DER-FRANZ - CHAI LATTE - SPICY, WARMING AND FAR-EASTERN, 500 G (62.02%)",Peoples Services Directorate,Personal Requisites,F106,
http://opendatacommunities.org/id/london-borough-council/sutton,London Borough of Sutton,02/12/2020,1309207,1.38 , AMAZON.CO.UK MY9W37DL4,SPLIT - MILKA CHOCO MOO CHOCOLATE BISCUITS 200G (10.24%),Peoples Services Directorate,Personal Requisites,F106,
http://opendatacommunities.org/id/london-borough-council/sutton,London Borough of Sutton,02/12/2020,1309207,3.74 , AMAZON.CO.UK MY9W37DL4,BALANCING ENTRY AMOUNT (27.74%),Peoples Services Directorate,Personal Requisites,F106,
http://opendatacommunities.org/id/london-borough-council/sutton,London Borough of Sutton,21/12/2020,1309207,10.00 , AMAZON.CO.UK MS73P2RU4,SPLIT - AMAZON LOGO SQUID - AMAZON.CO.UK EGIFT VOUCHER (100%),Peoples Services Directorate,Personal Requisites,F106,
http://opendatacommunities.org/id/london-borough-council/sutton,London Borough of Sutton,21/12/2020,1309207,10.00 , AMAZON.CO.UK MS03M3R14,SPLIT - AMAZON LOGO SQUID - AMAZON.CO.UK EGIFT VOUCHER (100%),Peoples Services Directorate,Personal Requisites,F106,
http://opendatacommunities.org/id/london-borough-council/sutton,London Borough of Sutton,21/12/2020,1309207,10.00 , AMAZON.CO.UK MS9TH1RN4,SPLIT - AMAZON LOGO SQUID - AMAZON.CO.UK EGIFT VOUCHER (100%),Peoples Services Directorate,Personal Requisites,F106,
http://opendatacommunities.org/id/london-borough-council/sutton,London Borough of Sutton,21/12/2020,1309207,4.90 , AMZNMKTPLACE AMAZON.CO,"SPLIT - VARTA LONGLIFE POWER AA MIGNON LR06 ALKALINE BATTERY (12-PACK) - MADE IN GERMANY - IDEAL FOR TOYS, TORCHES, CONTROLLERS AND OTHER BATTERY-POWERED DEVI (100%)",Peoples Services Directorate,Personal Requisites,F106,
http://opendatacommunities.org/id/london-borough-council/sutton,London Borough of Sutton,21/12/2020,1309207,10.00 , AMAZON.CO.UK MS2FC2R94,SPLIT - AMAZON LOGO SQUID - AMAZON.CO.UK EGIFT VOUCHER (100%),Peoples Services Directorate,Personal Requisites,F106,
http://opendatacommunities.org/id/london-borough-council/sutton,London Borough of Sutton,14/12/2020,1309207,7.27 , AMAZON.CO.UK MS7HG1GG4,"SPLIT - DOVE MEN+ GYM ESSENTIALS GIFT SET, WATER BOTTLE AND MICROFIBRE TOWEL, SKIN AND BODY CARE KIT, LONG LASTING DEODORANT FOR A CLEAN AND FRESH FRAGRANCE, SHOWER GEL AND SHAMPOO CONDITIONER SET, MENS GIFT (71.69%)",Peoples Services Directorate,Personal Requisites,F106,
http://opendatacommunities.org/id/london-borough-council/sutton,London Borough of Sutton,16/12/2020,1309207,10.92 , AMAZON.CO.UK MS6RN5BB4,"SPLIT - BURT'S BEES NATURALLY NOURISHING TREAT BOX MOISTURISING 6 PIECE GIFT SET, 0.15 KG (74.49%)",Peoples Services Directorate,Personal Requisites,F106,
http://opendatacommunities.org/id/london-borough-council/sutton,London Borough of Sutton,16/12/2020,1309207,3.74 , AMAZON.CO.UK MS6RN5BB4,BALANCING ENTRY AMOUNT (25.51%),Peoples Services Directorate,Personal Requisites,F106,
http://opendatacommunities.org/id/london-borough-council/sutton,London Borough of Sutton,16/12/2020,1309207,10.92 , AMAZON.CO.UK MS5TI3H44,"SPLIT - BURT'S BEES NATURALLY NOURISHING TREAT BOX MOISTURISING 6 PIECE GIFT SET, 0.15 KG (74.49%)",Peoples Services Directorate,Personal Requisites,F106,
http://opendatacommunities.org/id/london-borough-council/sutton,London Borough of Sutton,16/12/2020,1309207,3.74 , AMAZON.CO.UK MS5TI3H44,BALANCING ENTRY AMOUNT (25.51%),Peoples Services Directorate,Personal Requisites,F106,
http://opendatacommunities.org/id/london-borough-council/sutton,London Borough of Sutton,16/12/2020,1309207,10.92 , AMAZON.CO.UK MS9RW2BT4,"SPLIT - BURT'S BEES NATURALLY NOURISHING TREAT BOX MOISTURISING 6 PIECE GIFT SET, 0.15 KG (74.49%)",Peoples Services Directorate,Personal Requisites,F106,
http://opendatacommunities.org/id/london-borough-council/sutton,London Borough of Sutton,16/12/2020,1309207,3.74 , AMAZON.CO.UK MS9RW2BT4,BALANCING ENTRY AMOUNT (25.51%),Peoples Services Directorate,Personal Requisites,F106,
http://opendatacommunities.org/id/london-borough-council/sutton,London Borough of Sutton,16/12/2020,1309207,13.74 , AMZNMKTPLACE,SPLIT - INTER MILAN (SERIE A) FOOTBALL CREST SCARF (100% ACRYLIC) (78.6%),Peoples Services Directorate,Personal Requisites,F106,
http://opendatacommunities.org/id/london-borough-council/sutton,London Borough of Sutton,16/12/2020,1309207,3.74 , AMZNMKTPLACE,BALANCING ENTRY AMOUNT (21.4%),Peoples Services Directorate,Personal Requisites,F106,
http://opendatacommunities.org/id/london-borough-council/sutton,London Borough of Sutton,15/12/2020,1309207,9.70 , AMAZON.CO.UK MS8MG7HR4,"SPLIT - NIKE CLASSIC KNEE HIGH FOOTBALL DRI-FIT SOCKS, BLACK (BLACK/WEI�), 42-46 (MANUFACTURER SIZE: L)/8-11 UK (72.17%)",Peoples Services Directorate,Personal Requisites,F106,
http://opendatacommunities.org/id/london-borough-council/sutton,London Borough of Sutton,15/12/2020,1309207,3.74 , AMAZON.CO.UK MS8MG7HR4,BALANCING ENTRY AMOUNT (27.83%),Peoples Services Directorate,Personal Requisites,F106,
http://opendatacommunities.org/id/london-borough-council/sutton,London Borough of Sutton,18/12/2020,1309207,10.00 , AMAZON.CO.UK MS4E68DR4,SPLIT - AMAZON LOGO SQUID - AMAZON.CO.UK EGIFT VOUCHER (100%),Peoples Services Directorate,Personal Requisites,F106,
http://opendatacommunities.org/id/london-borough-council/sutton,London Borough of Sutton,02/12/2020,1309207,10.99 , AMZNMKTPLACE,SPLIT - MAD ABOUT MUGS TEA FOR ONE SET TEAPOT SAUCER CUP TEA COFFEE FLORAL BIRDS LILAC WHITE PORCELAIN (100%),Peoples Services Directorate,Personal Requisites,F106,
http://opendatacommunities.org/id/london-borough-council/sutton,London Borough of Sutton,02/12/2020,1309207,9.66 , AMZNMKTPLACE AMAZON.CO,SPLIT - WINDOW CURTAIN STRING LIGHTS- 3M(H)*1.5M(W) USB OR BATTERY OPERATED 8 MODES WITH REMOTE & TIMER FAIRY LIGHTS 200LED INDOOR OUTDOOR LIGHTS FOR WEDDING PARTY HOME BEDROOM WALL (WHITE) (68.27%),Peoples Services Directorate,Personal Requisites,F106,
http://opendatacommunities.org/id/london-borough-council/sutton,London Borough of Sutton,02/12/2020,1309207,4.49 , AMZNMKTPLACE AMAZON.CO,BALANCING ENTRY AMOUNT (31.73%),Peoples Services Directorate,Personal Requisites,F106,
http://opendatacommunities.org/id/london-borough-council/sutton,London Borough of Sutton,18/12/2020,1309207,10.00 , AMAZON.CO.UK MS3N01SY4,SPLIT - AMAZON LOGO SQUID - AMAZON.CO.UK EGIFT VOUCHER (100%),Peoples Services Directorate,Personal Requisites,F106,
http://opendatacommunities.org/id/london-borough-council/sutton,London Borough of Sutton,18/12/2020,1309207,10.00 , AMAZON.CO.UK MS75N7S34,SPLIT - AMAZON LOGO SQUID - AMAZON.CO.UK EGIFT VOUCHER (100%),Peoples Services Directorate,Personal Requisites,F106,
http://opendatacommunities.org/id/london-borough-council/sutton,London Borough of Sutton,18/12/2020,1309207,10.00 , AMAZON.CO.UK MS9F57SG4,SPLIT - AMAZON LOGO SQUID - AMAZON.CO.UK EGIFT VOUCHER (100%),Peoples Services Directorate,Personal Requisites,F106,
http://opendatacommunities.org/id/london-borough-council/sutton,London Borough of Sutton,18/12/2020,1309207,10.00 , AMAZON.CO.UK MS6OS6SJ4,SPLIT - AMAZON LOGO SQUID - AMAZON.CO.UK EGIFT VOUCHER (16.67%),Peoples Services Directorate,Personal Requisites,F106,
http://opendatacommunities.org/id/london-borough-council/sutton,London Borough of Sutton,18/12/2020,1309207,10.00 , AMAZON.CO.UK MS6OS6SJ4,SPLIT - AMAZON LOGO SQUID - AMAZON.CO.UK EGIFT VOUCHER (16.67%),Peoples Services Directorate,Personal Requisites,F106,
http://opendatacommunities.org/id/london-borough-council/sutton,London Borough of Sutton,18/12/2020,1309207,10.00 , AMAZON.CO.UK MS6OS6SJ4,SPLIT - AMAZON LOGO SQUID - AMAZON.CO.UK EGIFT VOUCHER (16.67%),Peoples Services Directorate,Personal Requisites,F106,
http://opendatacommunities.org/id/london-borough-council/sutton,London Borough of Sutton,18/12/2020,1309207,10.00 , AMAZON.CO.UK MS6OS6SJ4,SPLIT - AMAZON LOGO SQUID - AMAZON.CO.UK EGIFT VOUCHER (16.67%),Peoples Services Directorate,Personal Requisites,F106,
http://opendatacommunities.org/id/london-borough-council/sutton,London Borough of Sutton,18/12/2020,1309207,10.00 , AMAZON.CO.UK MS6OS6SJ4,SPLIT - AMAZON LOGO SQUID - AMAZON.CO.UK EGIFT VOUCHER (16.67%),Peoples Services Directorate,Personal Requisites,F106,
http://opendatacommunities.org/id/london-borough-council/sutton,London Borough of Sutton,18/12/2020,1309207,10.00 , AMAZON.CO.UK MS6OS6SJ4,SPLIT - AMAZON LOGO SQUID - AMAZON.CO.UK EGIFT VOUCHER (16.65%),Peoples Services Directorate,Personal Requisites,F106,
http://opendatacommunities.org/id/london-borough-council/sutton,London Borough of Sutton,18/12/2020,1309207,10.00 , AMAZON.CO.UK MS08S5DH4,SPLIT - AMAZON LOGO SQUID - AMAZON.CO.UK EGIFT VOUCHER (100%),Peoples Services Directorate,Personal Requisites,F106,
http://opendatacommunities.org/id/london-borough-council/sutton,London Borough of Sutton,18/12/2020,1309207,10.00 , AMAZON.CO.UK MS83W0S04,SPLIT - AMAZON LOGO SQUID - AMAZON.CO.UK EGIFT VOUCHER (100%),Peoples Services Directorate,Personal Requisites,F106,
http://opendatacommunities.org/id/london-borough-council/sutton,London Borough of Sutton,18/12/2020,1309207,10.00 , AMAZON.CO.UK MS0FK8SF4,SPLIT - AMAZON LOGO SQUID - AMAZON.CO.UK EGIFT VOUCHER (100%),Peoples Services Directorate,Personal Requisites,F106,
http://opendatacommunities.org/id/london-borough-council/sutton,London Borough of Sutton,15/12/2020,1309207,20.74 , AMAZON.CO.UK MS6X415N4,"SPLIT - PHILIPS 7-IN-1 ALL-IN-ONE TRIMMER, SERIES 3000 GROOMING KIT FOR BEARD & HAIR WITH 7 ATTACHMENTS, INCLUDING NOSE TRIMMER, SELF-SHARPENING BLADES, UK 3-PIN PLUG-MG3720/33 (84.72%)",Peoples Services Directorate,Personal Requisites,F106,
http://opendatacommunities.org/id/london-borough-council/sutton,London Borough of Sutton,02/12/2020,1309207,3.74 , AMZNMKTPLACE AMAZON.CO,BALANCING ENTRY AMOUNT (27.56%),Peoples Services Directorate,Personal Requisites,F106,
http://opendatacommunities.org/id/london-borough-council/sutton,London Borough of Sutton,02/12/2020,1309207,11.74 , AMZNMKTPLACE,"SPLIT - VBIGER UNISEX RUNNING GLOVES TOUCH SCREEN ANTI-SLIP SPORTS GLOVES WINTER GLOVES FOR RUNNING DRIVING HIKING CYCLING(L, BLACK) (75.84%)",Peoples Services Directorate,Personal Requisites,F106,
http://opendatacommunities.org/id/london-borough-council/sutton,London Borough of Sutton,02/12/2020,1309207,3.74 , AMZNMKTPLACE,BALANCING ENTRY AMOUNT (24.16%),Peoples Services Directorate,Personal Requisites,F106,
http://opendatacommunities.org/id/london-borough-council/sutton,London Borough of Sutton,02/12/2020,1309207,11.24 , AMAZON.CO.UK MY8MJ36X4,"SPLIT - NIVEA WINTER WARM UP GIFTSET, MOISTURISING GIFT SET WITH PRODUCTS SELECTED TO PROTECT SKIN, WINTER GIFTS FOR HER, GIFTS FOR WOMEN INCLUDES A REUSABLE BAMBOO TUMBLER (75.03%)",Peoples Services Directorate,Personal Requisites,F106,
http://opendatacommunities.org/id/london-borough-council/sutton,London Borough of Sutton,02/12/2020,1309207,3.74 , AMAZON.CO.UK MY8MJ36X4,BALANCING ENTRY AMOUNT (24.97%),Peoples Services Directorate,Personal Requisites,F106,
http://opendatacommunities.org/id/london-borough-council/sutton,London Borough of Sutton,26/11/2020,1309207,99.99 , ARGOS LTD,ARGOS PURCHASE - TV,Peoples Services Directorate,Personal Requisites,F106,
http://opendatacommunities.org/id/london-borough-council/sutton,London Borough of Sutton,19/12/2020,1309207,12.63 , PPOINT_ BOTTLE & BASKE,DR,Peoples Services Directorate,Personal Requisites,F106,
http://opendatacommunities.org/id/london-borough-council/sutton,London Borough of Sutton,15/12/2020,1309207,10.54 , AMAZON.CO.UK MS8JO6MU4,JC XMAS,Peoples Services Directorate,Personal Requisites,F106,
http://opendatacommunities.org/id/london-borough-council/sutton,London Borough of Sutton,14/12/2020,1309207,22.50 ," BOOTS,CROYDON",YP XMAS,Peoples Services Directorate,Personal Requisites,F106,
http://opendatacommunities.org/id/london-borough-council/sutton,London Borough of Sutton,13/12/2020,1309207,57.08 , SUPERDRUG STORES PLC,YP XMAS PRESENTS,Peoples Services Directorate,Personal Requisites,F106,
http://opendatacommunities.org/id/london-borough-council/sutton,London Borough of Sutton,11/12/2020,1309207,16.02 , PPOINT_ BOTTLE & BASKE,DR GROCERIES,Peoples Services Directorate,Personal Requisites,F106,
http://opendatacommunities.org/id/london-borough-council/sutton,London Borough of Sutton,09/12/2020,1309207,45.50 , PRIMARK,YP XMAS,Peoples Services Directorate,Personal Requisites,F106,
http://opendatacommunities.org/id/london-borough-council/sutton,London Borough of Sutton,08/12/2020,1309207,65.08 , SUTTON & EAST SURREY W,DR WATER,Peoples Services Directorate,Personal Requisites,F106,
http://opendatacommunities.org/id/london-borough-council/sutton,London Borough of Sutton,03/12/2020,1309207,46.61 , AMZNMKTPLACE,YP XMAS,Peoples Services Directorate,Personal Requisites,F106,
http://opendatacommunities.org/id/london-borough-council/sutton,London Borough of Sutton,02/12/2020,1309207,7.67 , SAINSBURYS SACAT(4308),MC GROCERIES,Peoples Services Directorate,Personal Requisites,F106,
http://opendatacommunities.org/id/london-borough-council/sutton,London Borough of Sutton,01/12/2020,1309207,19.17 , SAINSBURYS 2006,XMAS YP'S,Peoples Services Directorate,Personal Requisites,F106,
http://opendatacommunities.org/id/london-borough-council/sutton,London Borough of Sutton,21/12/2020,1309207,10.00 , AMAZON.CO.UK MS53U9RX4,SPLIT - AMAZON LOGO SQUID - AMAZON.CO.UK EGIFT VOUCHER (100%),Peoples Services Directorate,Personal Requisites,F106,
http://opendatacommunities.org/id/london-borough-council/sutton,London Borough of Sutton,21/12/2020,1309207,10.00 , AMAZON.CO.UK MS03R7RR4,SPLIT - AMAZON LOGO SQUID - AMAZON.CO.UK EGIFT VOUCHER (100%),Peoples Services Directorate,Personal Requisites,F106,
http://opendatacommunities.org/id/london-borough-council/sutton,London Borough of Sutton,21/12/2020,1309207,10.00 , AMAZON.CO.UK MS23T6RO4,SPLIT - AMAZON LOGO SQUID - AMAZON.CO.UK EGIFT VOUCHER (100%),Peoples Services Directorate,Personal Requisites,F106,
http://opendatacommunities.org/id/london-borough-council/sutton,London Borough of Sutton,21/12/2020,1309207,10.00 , AMAZON.CO.UK MS1SM0II4,SPLIT - SCOOTING SANTA - AMAZON.CO.UK EGIFT VOUCHER (100%),Peoples Services Directorate,Personal Requisites,F106,
http://opendatacommunities.org/id/london-borough-council/sutton,London Borough of Sutton,21/12/2020,1309207,10.00 , AMAZON.CO.UK MS0JE7IA4,SPLIT - AMAZON LOGO SQUID - AMAZON.CO.UK EGIFT VOUCHER (100%),Peoples Services Directorate,Personal Requisites,F106,
http://opendatacommunities.org/id/london-borough-council/sutton,London Borough of Sutton,21/12/2020,1309207,10.00 , AMAZON.CO.UK MS9JA2IS4,SPLIT - AMAZON LOGO SQUID - AMAZON.CO.UK EGIFT VOUCHER (100%),Peoples Services Directorate,Personal Requisites,F106,
http://opendatacommunities.org/id/london-borough-council/sutton,London Borough of Sutton,02/12/2020,1309207,10.74 , AMZNMKTPLACE AMAZON.CO,"SPLIT - OFOICE WINTER CYCLING GLOVES FOR MEN & WOMEN,OUTDOOR SPORTS GLOVES WITH TOUCHSCREEN ANTI-SLIP,WATERPROOF WARM GLOVES FOR DRIVING RUNNING (74.17%)",Peoples Services Directorate,Personal Requisites,F106,
http://opendatacommunities.org/id/london-borough-council/sutton,London Borough of Sutton,02/12/2020,1309207,3.74 , AMZNMKTPLACE AMAZON.CO,BALANCING ENTRY AMOUNT (25.83%),Peoples Services Directorate,Personal Requisites,F106,
http://opendatacommunities.org/id/london-borough-council/sutton,London Borough of Sutton,02/12/2020,1309207,10.74 , AMZNMKTPLACE,"SPLIT - OFOICE WINTER CYCLING GLOVES FOR MEN & WOMEN,OUTDOOR SPORTS GLOVES WITH TOUCHSCREEN ANTI-SLIP,WATERPROOF WARM GLOVES FOR DRIVING RUNNING (74.17%)",Peoples Services Directorate,Personal Requisites,F106,
http://opendatacommunities.org/id/london-borough-council/sutton,London Borough of Sutton,02/12/2020,1309207,3.74 , AMZNMKTPLACE,BALANCING ENTRY AMOUNT (25.83%),Peoples Services Directorate,Personal Requisites,F106,
http://opendatacommunities.org/id/london-borough-council/sutton,London Borough of Sutton,02/12/2020,1309207,10.74 , AMZNMKTPLACE,"SPLIT - OFOICE WINTER CYCLING GLOVES FOR MEN & WOMEN,OUTDOOR SPORTS GLOVES WITH TOUCHSCREEN ANTI-SLIP,WATERPROOF WARM GLOVES FOR DRIVING RUNNING (74.17%)",Peoples Services Directorate,Personal Requisites,F106,
http://opendatacommunities.org/id/london-borough-council/sutton,London Borough of Sutton,15/12/2020,1309207,3.74 , AMAZON.CO.UK MS6X415N4,BALANCING ENTRY AMOUNT (15.28%),Peoples Services Directorate,Personal Requisites,F106,
http://opendatacommunities.org/id/london-borough-council/sutton,London Borough of Sutton,15/12/2020,1309207,7.99 , AMAZON.CO.UK MS17A95Y4,SPLIT - BOSH!: SIMPLE RECIPES. UNBELIEVABLE RESULTS. ALL PLANTS. THE HIGHEST-SELLING VEGAN COOKERY BOOK EVER (72.77%),Peoples Services Directorate,Personal Requisites,F106,
http://opendatacommunities.org/id/london-borough-council/sutton,London Borough of Sutton,15/12/2020,1309207,2.99 , AMAZON.CO.UK MS17A95Y4,BALANCING ENTRY AMOUNT (27.23%),Peoples Services Directorate,Personal Requisites,F106,
http://opendatacommunities.org/id/london-borough-council/sutton,London Borough of Sutton,03/12/2020,1309207,11.74 , AMZNMKTPLACE,"SPLIT - VBIGER UNISEX RUNNING GLOVES TOUCH SCREEN ANTI-SLIP SPORTS GLOVES WINTER GLOVES FOR RUNNING DRIVING HIKING CYCLING(M, BLACK) (75.84%)",Peoples Services Directorate,Personal Requisites,F106,
http://opendatacommunities.org/id/london-borough-council/sutton,London Borough of Sutton,03/12/2020,1309207,3.74 , AMZNMKTPLACE,BALANCING ENTRY AMOUNT (24.16%),Peoples Services Directorate,Personal Requisites,F106,
http://opendatacommunities.org/id/london-borough-council/sutton,London Borough of Sutton,03/12/2020,1309207,14.24 , AMZNMKTPLACE AMAZON.CO,"SPLIT - DOVE MEN+ GYM ESSENTIALS GIFT SET, WATER BOTTLE AND MICROFIBRE TOWEL, SKIN AND BODY CARE KIT, LONG LASTING DEODORANT FOR A CLEAN AND FRESH FRAGRANCE, (79.2%)",Peoples Services Directorate,Personal Requisites,F106,
http://opendatacommunities.org/id/london-borough-council/sutton,London Borough of Sutton,03/12/2020,1309207,3.74 , AMZNMKTPLACE AMAZON.CO,BALANCING ENTRY AMOUNT (20.8%),Peoples Services Directorate,Personal Requisites,F106,
http://opendatacommunities.org/id/london-borough-council/sutton,London Borough of Sutton,02/12/2020,1309207,9.99 , AMAZON.CO.UK MY74576E4,SPLIT - TETLEY INDULGENCE TEABAGS VARIETY BOX / STRING & TAG ENVELOPES / 7 MIXED FLAVOURS / 90 BAGS (1 BOX) (68.99%),Peoples Services Directorate,Personal Requisites,F106,
http://opendatacommunities.org/id/london-borough-council/sutton,London Borough of Sutton,02/12/2020,1309207,4.49 , AMAZON.CO.UK MY74576E4,BALANCING ENTRY AMOUNT (31.01%),Peoples Services Directorate,Personal Requisites,F106,
http://opendatacommunities.org/id/london-borough-council/sutton,London Borough of Sutton,02/12/2020,1309207,9.83 , AMZNMKTPLACE,SPLIT - LED UV NAIL LAMPS FOR GEL NAIL POLISH NAIL DRYER CURING LAMP WITH 3 TIMERS AUTO SENSOR LED DIGITAL DISPLAY USB PLUG CARRY CONVENIENT (72.44%),Peoples Services Directorate,Personal Requisites,F106,
http://opendatacommunities.org/id/london-borough-council/sutton,London Borough of Sutton,02/12/2020,1309207,3.74 , AMZNMKTPLACE,BALANCING ENTRY AMOUNT (27.56%),Peoples Services Directorate,Personal Requisites,F106,
http://opendatacommunities.org/id/london-borough-council/sutton,London Borough of Sutton,02/12/2020,1309207,9.83 , AMZNMKTPLACE AMAZON.CO,SPLIT - LED UV NAIL LAMPS FOR GEL NAIL POLISH NAIL DRYER CURING LAMP WITH 3 TIMERS AUTO SENSOR LED DIGITAL DISPLAY USB PLUG CARRY CONVENIENT (72.44%),Peoples Services Directorate,Personal Requisites,F106,
http://opendatacommunities.org/id/london-borough-council/sutton,London Borough of Sutton,02/12/2020,1309207,3.74 , AMZNMKTPLACE,BALANCING ENTRY AMOUNT (25.83%),Peoples Services Directorate,Personal Requisites,F106,
http://opendatacommunities.org/id/london-borough-council/sutton,London Borough of Sutton,02/12/2020,1309207,10.74 , AMZNMKTPLACE,"SPLIT - OFOICE WINTER CYCLING GLOVES FOR MEN & WOMEN,OUTDOOR SPORTS GLOVES WITH TOUCHSCREEN ANTI-SLIP,WATERPROOF WARM GLOVES FOR DRIVING RUNNING (74.17%)",Peoples Services Directorate,Personal Requisites,F106,
http://opendatacommunities.org/id/london-borough-council/sutton,London Borough of Sutton,02/12/2020,1309207,3.74 , AMZNMKTPLACE,BALANCING ENTRY AMOUNT (25.83%),Peoples Services Directorate,Personal Requisites,F106,
http://opendatacommunities.org/id/london-borough-council/sutton,London Borough of Sutton,01/12/2020,1309207,10.74 , AMZNMKTPLACE,"SPLIT - OFOICE WINTER CYCLING GLOVES FOR MEN & WOMEN,OUTDOOR SPORTS GLOVES WITH TOUCHSCREEN ANTI-SLIP,WATERPROOF WARM GLOVES FOR DRIVING RUNNING (74.17%)",Peoples Services Directorate,Personal Requisites,F106,
http://opendatacommunities.org/id/london-borough-council/sutton,London Borough of Sutton,01/12/2020,1309207,3.74 , AMZNMKTPLACE,BALANCING ENTRY AMOUNT (25.83%),Peoples Services Directorate,Personal Requisites,F106,
http://opendatacommunities.org/id/london-borough-council/sutton,London Borough of Sutton,01/12/2020,1309207,10.74 , AMZNMKTPLACE AMAZON.CO,"SPLIT - PPEA ENAMEL SUNFLOWER CRYSTAL LEAD-FREE GLASS TEA CUP WITH SPOON SET, PRESENT FOR THE CHRISTMAS, VALENTINE'S DAY.BEST PRESENT FOR MOTHER, GRANDMA, GIRLFRIEND, SISTER. (74.17%)",Peoples Services Directorate,Personal Requisites,F106,
http://opendatacommunities.org/id/london-borough-council/sutton,London Borough of Sutton,01/12/2020,1309207,3.74 , AMZNMKTPLACE AMAZON.CO,BALANCING ENTRY AMOUNT (25.83%),Peoples Services Directorate,Personal Requisites,F106,
http://opendatacommunities.org/id/london-borough-council/sutton,London Borough of Sutton,30/11/2020,1309207,62.50 , 2MAA024919174 TD E-PMT,VISA NEEDED FOR CLIENT,Peoples Services Directorate,Personal Requisites,F106,
http://opendatacommunities.org/id/london-borough-council/sutton,London Borough of Sutton,14/12/2020,1309207,3.74 , AMAZON.CO.UK MS7HG1GG4,BALANCING ENTRY AMOUNT (28.31%),Peoples Services Directorate,Personal Requisites,F106,
http://opendatacommunities.org/id/london-borough-council/sutton,London Borough of Sutton,27/11/2020,1309207,8.00 , FOLKESTONE TAXI COMPAN,8.00 - H301 0304 9999 - FOLKESTONE TAXI (2).PDF,Peoples Services Directorate,Client Care/Assistance,H301,
http://opendatacommunities.org/id/london-borough-council/sutton,London Borough of Sutton,27/11/2020,1309207,115.00 , FOLKESTONE TAXI COMPAN,115.00 - H301 0304 9999 - FOLKESTONE TAXI (1).PDF,Peoples Services Directorate,Client Care/Assistance,H301,
http://opendatacommunities.org/id/london-borough-council/sutton,London Borough of Sutton,01/12/2020,1309207,307.50 , AMZNMKTPLACE,JM SET UP,Peoples Services Directorate,Set Up Costs - Children Leaving Care,H336,
http://opendatacommunities.org/id/london-borough-council/sutton,London Borough of Sutton,30/11/2020,1309207,86.62 , ARGOS LTD,MF SET UP,Peoples Services Directorate,Set Up Costs - Children Leaving Care,H336,
http://opendatacommunities.org/id/london-borough-council/sutton,London Borough of Sutton,27/11/2020,1309207,(37.50), ARGOS LTD,MC REFUND OF MC DUVET NOT COLLECTED,Peoples Services Directorate,Set Up Costs - Children Leaving Care,H336,
http://opendatacommunities.org/id/london-borough-council/sutton,London Borough of Sutton,14/12/2020,1309207,9.47 , AMAZON.CO.UK MS9S51GG4,"SPLIT - DOVE MEN+ GYM ESSENTIALS GIFT SET, WATER BOTTLE AND MICROFIBRE TOWEL, SKIN AND BODY CARE KIT, LONG LASTING DEODORANT FOR A CLEAN AND FRESH FRAGRANCE, SHOWER GEL AND SHAMPOO CONDITIONER SET, MENS GIFT (71.69%)",Peoples Services Directorate,Personal Requisites,F106,
http://opendatacommunities.org/id/london-borough-council/sutton,London Borough of Sutton,14/12/2020,1309207,3.74 , AMAZON.CO.UK MS9S51GG4,BALANCING ENTRY AMOUNT (28.31%),Peoples Services Directorate,Personal Requisites,F106,
http://opendatacommunities.org/id/london-borough-council/sutton,London Borough of Sutton,15/12/2020,1309207,3.74 , AMAZON.CO.UK MS1DN15P4,BALANCING ENTRY AMOUNT (28.31%),Peoples Services Directorate,Personal Requisites,F106,
http://opendatacommunities.org/id/london-borough-council/sutton,London Borough of Sutton,15/12/2020,1309207,9.47 , AMAZON.CO.UK MS5AD9504,"SPLIT - DOVE MEN+ GYM ESSENTIALS GIFT SET, WATER BOTTLE AND MICROFIBRE TOWEL, SKIN AND BODY CARE KIT, LONG LASTING DEODORANT FOR A CLEAN AND FRESH FRAGRANCE, SHOWER GEL AND SHAMPOO CONDITIONER SET, MENS GIFT (71.69%)",Peoples Services Directorate,Personal Requisites,F106,
http://opendatacommunities.org/id/london-borough-council/sutton,London Borough of Sutton,15/12/2020,1309207,3.74 , AMAZON.CO.UK MS5AD9504,BALANCING ENTRY AMOUNT (28.31%),Peoples Services Directorate,Personal Requisites,F106,
http://opendatacommunities.org/id/london-borough-council/sutton,London Borough of Sutton,15/12/2020,1309207,7.27 , AMAZON.CO.UK MS8A105C4,"SPLIT - DOVE MEN+ GYM ESSENTIALS GIFT SET, WATER BOTTLE AND MICROFIBRE TOWEL, SKIN AND BODY CARE KIT, LONG LASTING DEODORANT FOR A CLEAN AND FRESH FRAGRANCE, SHOWER GEL AND SHAMPOO CONDITIONER SET, MENS GIFT (71.69%)",Peoples Services Directorate,Personal Requisites,F106,
http://opendatacommunities.org/id/london-borough-council/sutton,London Borough of Sutton,15/12/2020,1309207,3.74 , AMAZON.CO.UK MS8A105C4,BALANCING ENTRY AMOUNT (28.31%),Peoples Services Directorate,Personal Requisites,F106,
http://opendatacommunities.org/id/london-borough-council/sutton,London Borough of Sutton,15/12/2020,1309207,7.27 , AMAZON.CO.UK MS9D335U4,"SPLIT - DOVE MEN+ GYM ESSENTIALS GIFT SET, WATER BOTTLE AND MICROFIBRE TOWEL, SKIN AND BODY CARE KIT, LONG LASTING DEODORANT FOR A CLEAN AND FRESH FRAGRANCE, SHOWER GEL AND SHAMPOO CONDITIONER SET, MENS GIFT (71.69%)",Peoples Services Directorate,Personal Requisites,F106,
http://opendatacommunities.org/id/london-borough-council/sutton,London Borough of Sutton,15/12/2020,1309207,3.74 , AMAZON.CO.UK MS9D335U4,BALANCING ENTRY AMOUNT (28.31%),Peoples Services Directorate,Personal Requisites,F106,
http://opendatacommunities.org/id/london-borough-council/sutton,London Borough of Sutton,15/12/2020,1309207,7.27 , AMAZON.CO.UK MS1DN15P4,"SPLIT - DOVE MEN+ GYM ESSENTIALS GIFT SET, WATER BOTTLE AND MICROFIBRE TOWEL, SKIN AND BODY CARE KIT, LONG LASTING DEODORANT FOR A CLEAN AND FRESH FRAGRANCE, SHOWER GEL AND SHAMPOO CONDITIONER SET, MENS GIFT (71.69%)",Peoples Services Directorate,Personal Requisites,F106,
http://opendatacommunities.org/id/london-borough-council/sutton,London Borough of Sutton,14/12/2020,1309207,7.27 , AMAZON.CO.UK MS4S09GT4,"SPLIT - DOVE MEN+ GYM ESSENTIALS GIFT SET, WATER BOTTLE AND MICROFIBRE TOWEL, SKIN AND BODY CARE KIT, LONG LASTING DEODORANT FOR A CLEAN AND FRESH FRAGRANCE, SHOWER GEL AND SHAMPOO CONDITIONER SET, MENS GIFT (71.69%)",Peoples Services Directorate,Personal Requisites,F106,
http://opendatacommunities.org/id/london-borough-council/sutton,London Borough of Sutton,14/12/2020,1309207,3.74 , AMAZON.CO.UK MS4S09GT4,BALANCING ENTRY AMOUNT (28.31%),Peoples Services Directorate,Personal Requisites,F106,
http://opendatacommunities.org/id/london-borough-council/sutton,London Borough of Sutton,21/12/2020,1309207,125.00 , AMZNMKTPLACE AMAZON.CO,MATTRESS REQUESTED FOR CARE LEAVER (38.58%),Peoples Services Directorate,Personal Requisites,F106,
http://opendatacommunities.org/id/london-borough-council/sutton,London Borough of Sutton,21/12/2020,1309207,199.00 , AMZNMKTPLACE AMAZON.CO,BED REQUESTED FOR CARE LEAVER (61.42%),Peoples Services Directorate,Personal Requisites,F106,
http://opendatacommunities.org/id/london-borough-council/sutton,London Borough of Sutton,20/12/2020,1309207,20.00 , OYSTER BUS AUTOLOAD,OYSTER CARD AUTO TOP-UP,Peoples Services Directorate,Travelling and Subsistence Allowances,A530,
http://opendatacommunities.org/id/london-borough-council/sutton,London Borough of Sutton,17/12/2020,1309207,20.00 , OYSTER BUS AUTOLOAD,OYSTER CARD AUTO TOP-UP,Peoples Services Directorate,Travelling and Subsistence Allowances,A530,
http://opendatacommunities.org/id/london-borough-council/sutton,London Borough of Sutton,13/12/2020,1309207,20.00 , OYSTER AUTO TOPUP,OYSTER CARD AUTO TOP-UP,Peoples Services Directorate,Travelling and Subsistence Allowances,A530,
http://opendatacommunities.org/id/london-borough-council/sutton,London Borough of Sutton,12/12/2020,1309207,20.00 , OYSTER BUS AUTOLOAD,OYSTER CARD AUTO TOP-UP,Peoples Services Directorate,Travelling and Subsistence Allowances,A530,
http://opendatacommunities.org/id/london-borough-council/sutton,London Borough of Sutton,06/12/2020,1309207,20.00 , OYSTER BUS AUTOLOAD,OYSTER CARD AUTO-TOP UP,Peoples Services Directorate,Travelling and Subsistence Allowances,A530,
http://opendatacommunities.org/id/london-borough-council/sutton,London Borough of Sutton,03/12/2020,1309207,245.00 , HOTEL ON BOOKING.COM,HOTEL BOOKING FOR A CLIENT,Peoples Services Directorate,Accommodation - Bed and Breakfast,H202,
http://opendatacommunities.org/id/london-borough-council/sutton,London Borough of Sutton,04/12/2020,1309207,9.17 , WALLINGTON CARS AND CO,TRAVEL NEEDED FOR BUSINESS SUPPORT OFFICER,Peoples Services Directorate,Client Care/Assistance,H301,
http://opendatacommunities.org/id/london-borough-council/sutton,London Borough of Sutton,26/11/2020,1309207,214.13 , HOTEL ON BOOKING.COM,214.13 - H301 0310 9999 - EMERGENCY ACCOMMODATION.PDF,Peoples Services Directorate,Client Care/Assistance,H301,
http://opendatacommunities.org/id/london-borough-council/sutton,London Borough of Sutton,17/12/2020,1309207,5.45 , WILKO RETAIL LIMITED,REUSABLE SACKS PURCHASE,Peoples Services Directorate,Personal Requisites,F106,
http://opendatacommunities.org/id/london-borough-council/sutton,London Borough of Sutton,18/12/2020,1309207,2.00 , POUNDLAND LTD 1211,2 X PACK OF PRESENT TAGS,Peoples Services Directorate,Personal Requisites,F106,
http://opendatacommunities.org/id/london-borough-council/sutton,London Borough of Sutton,09/12/2020,1309207,4.20 , THE WORKS,BROWN WRAPPING PAPER,Peoples Services Directorate,Personal Requisites,F106,
http://opendatacommunities.org/id/london-borough-council/sutton,London Borough of Sutton,08/12/2020,1309207,33.00 , SURREY CC CARD PAY,BIRTH CERTIFICATE ORDER,Peoples Services Directorate,Personal Requisites,F106,
http://opendatacommunities.org/id/london-borough-council/sutton,London Borough of Sutton,17/12/2020,1309207,34.30 , POUNDLAND LTD 1211,34.30 - F106 0311 9999 - WRAPPING PAPER FOR LAC PRESENTS.PNG,Peoples Services Directorate,Personal Requisites,F106,
http://opendatacommunities.org/id/london-borough-council/sutton,London Borough of Sutton,22/12/2020,1309207,58.33 , LBS REGISTRARS,BIRTH CERT NEEDED FOR LEGAL PROCEEDINGS,Peoples Services Directorate,Personal Requisites,F106,
http://opendatacommunities.org/id/london-borough-council/sutton,London Borough of Sutton,21/12/2020,1309207,10.00 , AMAZON.CO.UK MS3SA7I44,GIFT CARD AMAZON.CO.UK EGIFT VOUCHER (100%),Peoples Services Directorate,Personal Requisites,F106,
http://opendatacommunities.org/id/london-borough-council/sutton,London Borough of Sutton,04/12/2020,1309207,23.20 , WILKO RETAIL LIMITED,WILKO GIFTS FRO SALVATION ARMY AND POLICE ,Peoples Services Directorate,Refreshments,F155,
http://opendatacommunities.org/id/london-borough-council/sutton,London Borough of Sutton,12/12/2020,1309207,20.00 , OYSTER BUS AUTOLOAD,OYSTER CARD AUTO TOP-UP,Peoples Services Directorate,Travelling and Subsistence Allowances,A530,
http://opendatacommunities.org/id/london-borough-council/sutton,London Borough of Sutton,29/11/2020,1309207,16.67 , OYSTER AUTO TOPUP,AUTO TOP - UP,Peoples Services Directorate,Travelling and Subsistence Allowances,A530,
http://opendatacommunities.org/id/london-borough-council/sutton,London Borough of Sutton,04/12/2020,1309207,30.00 , GEN REGISTER OFFICE,BIRTH CERT REQUIRED FOR LEGAL PROCEEDINGS,Peoples Services Directorate,Personal Requisites,F106,
http://opendatacommunities.org/id/london-borough-council/sutton,London Borough of Sutton,03/12/2020,1309207,(22.92), ESSEX CC CARD PAYMENT,REFUND FOR BIRTH CERT,Peoples Services Directorate,Personal Requisites,F106,
http://opendatacommunities.org/id/london-borough-council/sutton,London Borough of Sutton,26/11/2020,1309207,27.50 , LBS REGISTRARS,BIRTH CERTIFICATE PURCHASE,Peoples Services Directorate,Personal Requisites,F106,
http://opendatacommunities.org/id/london-borough-council/sutton,London Borough of Sutton,26/11/2020,1309207,27.50 , LBS REGISTRARS,BIRTH CERTIFICATE PURCHASE,Peoples Services Directorate,Personal Requisites,F106,
http://opendatacommunities.org/id/london-borough-council/sutton,London Borough of Sutton,26/11/2020,1309207,27.50 , LBS REGISTRARS,BIRTH CERTIFICATE PURCHASE,Peoples Services Directorate,Personal Requisites,F106,
http://opendatacommunities.org/id/london-borough-council/sutton,London Borough of Sutton,23/12/2020,1309207,20.83 , GEN REGISTER OFFICE,BIRTH CERT NEEDED FOR LEGAL PROCEEDINGS,Peoples Services Directorate,Personal Requisites,F106,
http://opendatacommunities.org/id/london-borough-council/sutton,London Borough of Sutton,16/12/2020,1309207,90.00 , GEN REGISTER OFFICE,BIRTH CERT NEEDED FOR LEGAL PROCEEDINGS,Peoples Services Directorate,Personal Requisites,F106,
http://opendatacommunities.org/id/london-borough-council/sutton,London Borough of Sutton,09/12/2020,1309207,65.79 , WWW.PEELHOTELS.CO.UK,HOTEL NEEDED FOR CLIENT,Peoples Services Directorate,C.C.A Travel & Subsistance,H212,
http://opendatacommunities.org/id/london-borough-council/sutton,London Borough of Sutton,01/12/2020,1309207,10.00 , WALLINGTON CARS AND CO,REQUEST FOR A TAXI/CAB,Peoples Services Directorate,C.C.A Travel & Subsistance,H212,
http://opendatacommunities.org/id/london-borough-council/sutton,London Borough of Sutton,01/12/2020,1309207,100.00 , WALLINGTON CARS AND CO,CAB REQUIRED FOR CLIENT,Peoples Services Directorate,C.C.A Travel & Subsistance,H212,
http://opendatacommunities.org/id/london-borough-council/sutton,London Borough of Sutton,18/12/2020,1309207,76.67 , PARTRIDGE & PRINT,BOOKS NEEDED FOR SOCIAL WORKER,Peoples Services Directorate,Personal Requisites,F106,
http://opendatacommunities.org/id/london-borough-council/sutton,London Borough of Sutton,24/12/2020,1309207,59.95 , ZOOM.US 888-799-9666,ZOOM LICENSE NEEDED FOR MEETINGS,Peoples Services Directorate,Subscriptions - General,F450,
http://opendatacommunities.org/id/london-borough-council/sutton,London Borough of Sutton,30/11/2020,1309207,159.90 , ZOOM.US 888-799-9666,ZOOM SUBSCRIPTION NEEDED FOR TEAM,Peoples Services Directorate,Subscriptions - General,F450,
http://opendatacommunities.org/id/london-borough-council/sutton,London Borough of Sutton,23/12/2020,1309207,156.02 , FACEBK 73X7MYWAL2,CHRISTMAS DOMESTIC ABUSE CAMPAIGN,Peoples Services Directorate,Advertising/Publicity (non Staff),F240,
http://opendatacommunities.org/id/london-borough-council/sutton,London Borough of Sutton,19/12/2020,1309207,200.00 , FACEBK 9EPGJYWAL2,XMAS DOMESTIC ABUSE CAMPAIGN,Peoples Services Directorate,Advertising/Publicity (non Staff),F240,
http://opendatacommunities.org/id/london-borough-council/sutton,London Borough of Sutton,14/12/2020,1309207,35.00 , MARKS&SPENCER PLC,REQUESTED BY SOCIAL WORKER,Peoples Services Directorate,Personal Requisites,F106,
http://opendatacommunities.org/id/london-borough-council/sutton,London Borough of Sutton,29/11/2020,1309207,16.67 , OYSTER BUS AUTOLOAD,AUTO TOP - UP,Peoples Services Directorate,Travelling and Subsistence Allowances,A530,
http://opendatacommunities.org/id/london-borough-council/sutton,London Borough of Sutton,11/12/2020,1309207,15.99 , ONE4ALL,THANK YOU ONE4ALL GIFT CARD,Peoples Services Directorate,Personal Requisites,F106,
http://opendatacommunities.org/id/london-borough-council/sutton,London Borough of Sutton,13/12/2020,1309207,11.99 , ZOOM.US 888-799-9666,ZOOM SUBSCRIPTION FOR CARE LEAVERS,Peoples Services Directorate,LAC - Education,F269,
http://opendatacommunities.org/id/london-borough-council/sutton,London Borough of Sutton,03/12/2020,1309207,180.00 , AMAZON.CO.UK MY5CK0SV4,SPLIT - AMAZON.CO.UK GIFT CARD IN A GREETING CARD (CONGRATS CIRCLES) (100%),Peoples Services Directorate,Client Care/Assistance,H301,
http://opendatacommunities.org/id/london-borough-council/sutton,London Borough of Sutton,03/12/2020,1309207,500.00 , AMAZON.CO.UK MY3N44SK4,SPLIT - AMAZON.CO.UK GIFT CARD IN A GREETING CARD (CONGRATS CIRCLES) (100%),Peoples Services Directorate,Client Care/Assistance,H301,
http://opendatacommunities.org/id/london-borough-council/sutton,London Borough of Sutton,03/12/2020,1309207,500.00 , AMAZON.CO.UK MY6NY0SC4,SPLIT - AMAZON.CO.UK GIFT CARD IN A GREETING CARD (CONGRATS CIRCLES) (100%),Peoples Services Directorate,Client Care/Assistance,H301,
http://opendatacommunities.org/id/london-borough-council/sutton,London Borough of Sutton,03/12/2020,1309207,500.00 , AMAZON.CO.UK MY4NO9S04,SPLIT - AMAZON.CO.UK GIFT CARD IN A GREETING CARD (CONGRATS CIRCLES) (100%),Peoples Services Directorate,Client Care/Assistance,H301,
http://opendatacommunities.org/id/london-borough-council/sutton,London Borough of Sutton,03/12/2020,1309207,500.00 , AMAZON.CO.UK MY4PD9S24,SPLIT - AMAZON.CO.UK GIFT CARD IN A GREETING CARD (CONGRATS CIRCLES) (100%),Peoples Services Directorate,Client Care/Assistance,H301,
http://opendatacommunities.org/id/london-borough-council/sutton,London Borough of Sutton,03/12/2020,1309207,500.00 , AMAZON.CO.UK MY8ZH92B4,SPLIT - AMAZON.CO.UK GIFT CARD - IN A GREETING CARD - £10 (CONGRATS CIRCLES) (100%),Peoples Services Directorate,Client Care/Assistance,H301,
http://opendatacommunities.org/id/london-borough-council/sutton,London Borough of Sutton,03/12/2020,1309207,10.00 , AMAZON.CO.UK MY57H3S14,SPLIT - AMAZON.CO.UK GIFT CARD IN A GREETING CARD (CONGRATS CIRCLES) (100%),Peoples Services Directorate,Client Care/Assistance,H301,
http://opendatacommunities.org/id/london-borough-council/sutton,London Borough of Sutton,15/12/2020,1309207,270.82 , ARGOS LTD,ITEMS NEEDED FOR CARE LEAVER,Peoples Services Directorate,Personal Requisites,F106,
http://opendatacommunities.org/id/london-borough-council/sutton,London Borough of Sutton,02/12/2020,1309207,46.62 , ISHOP,NAPPIES REQUIRED FOR A CARE LEAVER,Peoples Services Directorate,Personal Requisites,F106,
http://opendatacommunities.org/id/london-borough-council/sutton,London Borough of Sutton,17/12/2020,1309207,29.17 , PREMIER INN,HOTEL REQUESTED FOR CLIENT,Peoples Services Directorate,Accommodation - Bed and Breakfast,H202,
http://opendatacommunities.org/id/london-borough-council/sutton,London Borough of Sutton,30/11/2020,1309207,408.33 , PREMIER INN,HOTEL NEEDED FOR CLIENT,Peoples Services Directorate,Accommodation - Bed and Breakfast,H202,
http://opendatacommunities.org/id/london-borough-council/sutton,London Borough of Sutton,07/12/2020,1309207,466.67 , PREMIER INN,HOTEL NEEDED FOR CLIENT,Peoples Services Directorate,C.C.A Travel & Subsistance,H212,
http://opendatacommunities.org/id/london-borough-council/sutton,London Borough of Sutton,15/12/2020,1309207,525.00 , PREMIER INN,HOTEL EXTENSION NEEDED FOR CLIENT,Peoples Services Directorate,C.C.A Travel & Subsistance,H212,
http://opendatacommunities.org/id/london-borough-council/sutton,London Borough of Sutton,24/12/2020,1309207,63.33 , PREMIER INN,HOTEL NEEDED FOR CLIENT,Peoples Services Directorate,C.C.A Travel & Subsistance,H212,
http://opendatacommunities.org/id/london-borough-council/sutton,London Borough of Sutton,18/12/2020,1309207,96.67 , PREMIER INN,HOTEL REQUESTED FOR CLIENT,Peoples Services Directorate,C.C.A Travel & Subsistance,H212,
http://opendatacommunities.org/id/london-borough-council/sutton,London Borough of Sutton,18/12/2020,1309207,478.33 , PREMIER INN,HOTEL REQUESTED FOR CLIENT,Peoples Services Directorate,C.C.A Travel & Subsistance,H212,
http://opendatacommunities.org/id/london-borough-council/sutton,London Borough of Sutton,02/12/2020,1309207,57.45 , ARGOS LTD,ITEMS NEEDED FOR A CARE LEAVER,Peoples Services Directorate,Client Care/Assistance,H301,
http://opendatacommunities.org/id/london-borough-council/sutton,London Borough of Sutton,14/12/2020,1309207,87.50 , PREMIER INN,HOTEL EXTENSION NEEDED FOR CLIENT,Peoples Services Directorate,Client Care/Assistance,H301,
http://opendatacommunities.org/id/london-borough-council/sutton,London Borough of Sutton,08/12/2020,1309207,221.50 , PREMIER INN,221.50 H 3010371 9999 PREMIRE INN.PDF,Peoples Services Directorate,Client Care/Assistance,H301,
http://opendatacommunities.org/id/london-borough-council/sutton,London Borough of Sutton,22/12/2020,1309207,160.00 , EQUALS.ACCAGLOBAL.,COURSE NEEDED FOR SOCIAL WORKER,Peoples Services Directorate,Training - Course Fees,A520,
http://opendatacommunities.org/id/london-borough-council/sutton,London Borough of Sutton,16/12/2020,1309207,20.00 , OYSTER BUS AUTOLOAD,OYSTER CARD AUTO TOP-UP,Peoples Services Directorate,Travelling and Subsistence Allowances,A530,
http://opendatacommunities.org/id/london-borough-council/sutton,London Borough of Sutton,02/12/2020,1309207,20.00 , OYSTER BUS AUTOLOAD,OYSTER CARD AUTO TOP-UP,Peoples Services Directorate,Travelling and Subsistence Allowances,A530,
http://opendatacommunities.org/id/london-borough-council/sutton,London Borough of Sutton,02/12/2020,1309207,20.00 , OYSTER BUS AUTOLOAD,OYSTER CARD AUTO TOP-UP,Peoples Services Directorate,Travelling and Subsistence Allowances,A530,
http://opendatacommunities.org/id/london-borough-council/sutton,London Borough of Sutton,18/12/2020,1309207,20.00 , OYSTER BUS AUTOLOAD,OYSTER CARD AUTO TOP-UP,Peoples Services Directorate,Travelling and Subsistence Allowances,A530,
http://opendatacommunities.org/id/london-borough-council/sutton,London Borough of Sutton,12/12/2020,1309207,20.00 , OYSTER BUS AUTOLOAD,OYSTER CARD AUTO TOP-UP,Peoples Services Directorate,Travelling and Subsistence Allowances,A530,
http://opendatacommunities.org/id/london-borough-council/sutton,London Borough of Sutton,04/12/2020,1309207,50.00 , AMAZON.CO.UK MY90O37I4,SPLIT - AMAZON LOGO SQUID - AMAZON.CO.UK EGIFT VOUCHER (14.26%),Peoples Services Directorate,LAC - Education,F269,
http://opendatacommunities.org/id/london-borough-council/sutton,London Borough of Sutton,26/11/2020,1309207,7.99 , AMAZON.CO.UK MY8VO6EL4,SPLIT - MACBETH (10.59%),Peoples Services Directorate,LAC - Education,F269,
http://opendatacommunities.org/id/london-borough-council/sutton,London Borough of Sutton,26/11/2020,1309207,13.50 , AMAZON.CO.UK MY8VO6EL4,"SPLIT - EDEXCEL GCSE (9-1) HISTORY: SUPERPOWER RELATIONS AND THE COLD WAR, 1941-91 (EDEXCEL GCSE HISTORY (9-1)) (17.89%)",Peoples Services Directorate,LAC - Education,F269,
http://opendatacommunities.org/id/london-borough-council/sutton,London Borough of Sutton,26/11/2020,1309207,24.99 , AMAZON.CO.UK MY8VO6EL4,SPLIT - AQA GCSE (9-1) RELIGIOUS STUDIES SPECIFICATION A (33.11%),Peoples Services Directorate,LAC - Education,F269,
http://opendatacommunities.org/id/london-borough-council/sutton,London Borough of Sutton,26/11/2020,1309207,15.50 , AMAZON.CO.UK MY8VO6EL4,SPLIT - AQA GCSE BIOLOGY FOR COMBINED SCIENCE (TRILOGY) STUDENT BOOK (AQA GCSE SCIENCE 3RD EDITION) (20.54%),Peoples Services Directorate,LAC - Education,F269,
http://opendatacommunities.org/id/london-borough-council/sutton,London Borough of Sutton,26/11/2020,1309207,13.50 , AMAZON.CO.UK MY8VO6EL4,"SPLIT - EDEXCEL GCSE (9-1) HISTORY: EARLY ELIZABETHAN ENGLAND, 1558-1588 (EDEXCEL GCSE HISTORY (9-1)) (17.87%)",Peoples Services Directorate,LAC - Education,F269,
http://opendatacommunities.org/id/london-borough-council/sutton,London Borough of Sutton,26/11/2020,1309207,12.00 , ROYAL MAIL GROUP LTD,POSTAGE FOR CLA LAPTOPS,Peoples Services Directorate,LAC - Education,F269,
http://opendatacommunities.org/id/london-borough-council/sutton,London Borough of Sutton,26/11/2020,1309207,5.55 , AMAZON.CO.UK MY5987EE4,"SPLIT - PEARSON EDEXCEL GCSE (9-1) HISTORY WEIMAR AND NAZI GERMANY, 1918-39 REVISION GUIDE AND WORKBOOK + APP: CATCH-UP AND REVISE (REVISE EDEXCEL GCSE HISTORY 16) (100%)",Peoples Services Directorate,LAC - Education,F269,
http://opendatacommunities.org/id/london-borough-council/sutton,London Borough of Sutton,26/11/2020,1309207,5.55 , AMAZON.CO.UK MY0129EM4,"SPLIT - PEARSON EDEXCEL GCSE (9-1) HISTORY CRIME AND PUNISHMENT IN BRITAIN, C1000-PRESENT REVISION GUIDE AND WORKBOOK + APP: CATCH-UP AND REVISE (REVISE EDEXCEL GCSE HISTORY 16) (100%)",Peoples Services Directorate,LAC - Education,F269,
http://opendatacommunities.org/id/london-borough-council/sutton,London Borough of Sutton,20/12/2020,1309207,7.05 , AMAZON.CO.UK MS2RB9U54,SPLIT - GCSE ENGLISH LITERATURE AQA COMPLETE REVISION & PRACTICE - GRADE 9-1 (WITH ONLINE EDITION): UNBEATABLE REVISION FOR MOCKS AND EXAMS IN 2021 AND 2022 (CGP GCSE ENGLISH 9-1 REVISION) (19.42%),Peoples Services Directorate,LAC - Education,F269,
http://opendatacommunities.org/id/london-borough-council/sutton,London Borough of Sutton,20/12/2020,1309207,9.26 , AMAZON.CO.UK MS2RB9U54,SPLIT - GCSE BUSINESS COMPLETE REVISION AND PRACTICE - FOR THE GRADE 9-1 COURSE (WITH ONLINE EDITION): IDEAL REVISION FOR MOCKS AND EXAMS IN 2021 AND 2022 (CGP GCSE BUSINESS 9-1 REVISION) (26.77%),Peoples Services Directorate,LAC - Education,F269,
http://opendatacommunities.org/id/london-borough-council/sutton,London Borough of Sutton,04/12/2020,1309207,50.00 , AMAZON.CO.UK MY90O37I4,SPLIT - AMAZON LOGO SQUID - AMAZON.CO.UK EGIFT VOUCHER (14.29%),Peoples Services Directorate,LAC - Education,F269,
http://opendatacommunities.org/id/london-borough-council/sutton,London Borough of Sutton,20/12/2020,1309207,6.71 , AMAZON.CO.UK MS2RB9U54,SPLIT - GCSE ENGLISH LANGUAGE AQA COMPLETE REVISION & PRACTICE - GRADE 9-1 COURSE (WITH ONLINE EDITION): PERFECT REVISION FOR MOCKS AND EXAMS IN 2021 AND 2022 (CGP GCSE ENGLISH 9-1 REVISION) (19.42%),Peoples Services Directorate,LAC - Education,F269,
http://opendatacommunities.org/id/london-borough-council/sutton,London Borough of Sutton,20/12/2020,1309207,9.27 , AMAZON.CO.UK MS2RB9U54,"SPLIT - NEW 2021 GCSE MATHS EDEXCEL COMPLETE REVISION & PRACTICE: HIGHER INC ONLINE ED, VIDEOS & QUIZZES (CGP GCSE MATHS 9-1 REVISION) (26.8%)",Peoples Services Directorate,LAC - Education,F269,
http://opendatacommunities.org/id/london-borough-council/sutton,London Borough of Sutton,20/12/2020,1309207,2.35 , AMAZON.CO.UK MS2RB9U54,BALANCING ENTRY AMOUNT (7.59%),Peoples Services Directorate,LAC - Education,F269,
http://opendatacommunities.org/id/london-borough-council/sutton,London Borough of Sutton,15/12/2020,1309207,6.99 , AMAZON.CO.UK MS0VK6MO4,SPLIT - GCSE ENGLISH LANGUAGE AQA COMPLETE REVISION & PRACTICE - GRADE 9-1 COURSE (WITH ONLINE EDITION): PERFECT REVISION FOR MOCKS AND EXAMS IN 2021 AND 2022 (CGP GCSE ENGLISH 9-1 REVISION) (44.38%),Peoples Services Directorate,LAC - Education,F269,
http://opendatacommunities.org/id/london-borough-council/sutton,London Borough of Sutton,15/12/2020,1309207,5.77 , AMAZON.CO.UK MS0VK6MO4,SPLIT - GCSE ENGLISH LANGUAGE AQA EXAM PRACTICE WORKBOOK - FOR THE GRADE 9-1 COURSE (INCLUDES ANSWERS): PERFECT REVISION FOR MOCKS AND EXAMS IN 2021 AND 2022 (CGP GCSE ENGLISH 9-1 REVISION) (36.63%),Peoples Services Directorate,LAC - Education,F269,
http://opendatacommunities.org/id/london-borough-council/sutton,London Borough of Sutton,15/12/2020,1309207,2.99 , AMAZON.CO.UK MS0VK6MO4,BALANCING ENTRY AMOUNT (18.99%),Peoples Services Directorate,LAC - Education,F269,
http://opendatacommunities.org/id/london-borough-council/sutton,London Borough of Sutton,13/12/2020,1309207,35.00 , 3P LEARNING,MATHLETICS 6 MONTHS FOR JAY T,Peoples Services Directorate,LAC - Education,F269,
http://opendatacommunities.org/id/london-borough-council/sutton,London Borough of Sutton,13/12/2020,1309207,5.45 , AMAZON.CO.UK MS2UG0164,"SPLIT - MARVEL AVENGERS ACTIVITY BOOK FOR KIDS AGES 4-12: WORD SEARCH, MAZES, COLOR BY NUMBER, DOT-TO-DOT, FIND THE MATCH AND MORE! (57.73%)",Peoples Services Directorate,LAC - Education,F269,
http://opendatacommunities.org/id/london-borough-council/sutton,London Borough of Sutton,13/12/2020,1309207,3.99 , AMAZON.CO.UK MS2UG0164,BALANCING ENTRY AMOUNT (42.27%),Peoples Services Directorate,LAC - Education,F269,
http://opendatacommunities.org/id/london-borough-council/sutton,London Borough of Sutton,11/12/2020,1309207,4.16 , AMAZON.CO.UK MS9IW1TM4,"SPLIT - RAVENSBURGER 6958 PEPPA PIG-4 IN BOX (12, 16, 20, 24 PIECE) JIGSAW PUZZLES FOR KIDS AGE 3 YEARS AND UP (45.46%)",Peoples Services Directorate,LAC - Education,F269,
http://opendatacommunities.org/id/london-borough-council/sutton,London Borough of Sutton,11/12/2020,1309207,4.99 , AMAZON.CO.UK MS9IW1TM4,BALANCING ENTRY AMOUNT (54.54%),Peoples Services Directorate,LAC - Education,F269,
http://opendatacommunities.org/id/london-borough-council/sutton,London Borough of Sutton,10/12/2020,1309207,6.52 , AMAZON.CO.UK MS1ZS2374,SPLIT - HASBRO GAMING BOGGLE (65.3%),Peoples Services Directorate,LAC - Education,F269,
http://opendatacommunities.org/id/london-borough-council/sutton,London Borough of Sutton,10/12/2020,1309207,3.47 , AMAZON.CO.UK MS1ZS2374,BALANCING ENTRY AMOUNT (34.7%),Peoples Services Directorate,LAC - Education,F269,
http://opendatacommunities.org/id/london-borough-council/sutton,London Borough of Sutton,10/12/2020,1309207,8.56 , AMAZON.CO.UK MS8X57NA4,SPLIT - ORCHARD TOYS TIMES TABLES HEROES (21.41%),Peoples Services Directorate,LAC - Education,F269,
http://opendatacommunities.org/id/london-borough-council/sutton,London Borough of Sutton,10/12/2020,1309207,21.06 , AMAZON.CO.UK MS8X57NA4,"SPLIT - LEGO 11009 CLASSIC BRICKS AND LIGHTS SHADOW PUPPET THEATER SET WITH LIGHT BRICKS, CREATIVE FUN FOR 5+ YEAR OLD (52.68%)",Peoples Services Directorate,LAC - Education,F269,
http://opendatacommunities.org/id/london-borough-council/sutton,London Borough of Sutton,10/12/2020,1309207,6.90 , AMAZON.CO.UK MS8X57NA4,"SPLIT - BRAINBOX GRE91039 FIRST: PEPPA PIG, MIXED COLOURS (17.26%)",Peoples Services Directorate,LAC - Education,F269,
http://opendatacommunities.org/id/london-borough-council/sutton,London Borough of Sutton,10/12/2020,1309207,3.44 , AMAZON.CO.UK MS8X57NA4,BALANCING ENTRY AMOUNT (8.65%),Peoples Services Directorate,LAC - Education,F269,
http://opendatacommunities.org/id/london-borough-council/sutton,London Borough of Sutton,10/12/2020,1309207,6.02 , AMZNMKTPLACE,"SPLIT - LITTLE BRIAN LBPS10CA12 PAINT STICKS COLORS-12, ASSORTED CLASSIC, PACK OF 12 (100%)",Peoples Services Directorate,LAC - Education,F269,
http://opendatacommunities.org/id/london-borough-council/sutton,London Borough of Sutton,04/12/2020,1309207,50.00 , AMAZON.CO.UK MY90O37I4,SPLIT - AMAZON LOGO SQUID - AMAZON.CO.UK EGIFT VOUCHER (14.29%),Peoples Services Directorate,LAC - Education,F269,
http://opendatacommunities.org/id/london-borough-council/sutton,London Borough of Sutton,04/12/2020,1309207,50.00 , AMAZON.CO.UK MY90O37I4,SPLIT - AMAZON LOGO SQUID - AMAZON.CO.UK EGIFT VOUCHER (14.29%),Peoples Services Directorate,LAC - Education,F269,
http://opendatacommunities.org/id/london-borough-council/sutton,London Borough of Sutton,04/12/2020,1309207,50.00 , AMAZON.CO.UK MY90O37I4,SPLIT - A FOR AMAZON - AMAZON.CO.UK EGIFT VOUCHER (14.29%),Peoples Services Directorate,LAC - Education,F269,
http://opendatacommunities.org/id/london-borough-council/sutton,London Borough of Sutton,04/12/2020,1309207,50.00 , AMAZON.CO.UK MY90O37I4,SPLIT - AMAZON LOGO SQUID - AMAZON.CO.UK EGIFT VOUCHER (14.29%),Peoples Services Directorate,LAC - Education,F269,
http://opendatacommunities.org/id/london-borough-council/sutton,London Borough of Sutton,04/12/2020,1309207,50.00 , AMAZON.CO.UK MY90O37I4,SPLIT - AMAZON LOGO SQUID - AMAZON.CO.UK EGIFT VOUCHER (14.29%),Peoples Services Directorate,LAC - Education,F269,
http://opendatacommunities.org/id/london-borough-council/sutton,London Borough of Sutton,01/12/2020,1309207,100.00 , AMAZON.CO.UK MY9HH2BJ4,STAFF CONFERENCE AWARDS,Health and Wellbeing Directorate,General Office Expenses,F235,
http://opendatacommunities.org/id/london-borough-council/sutton,London Borough of Sutton,03/12/2020,1309207,8.32 , SPOTIFY UK,MUSIC FOR WEDDINGS,Resources Directorate,Subscriptions - General,F450,
http://opendatacommunities.org/id/london-borough-council/sutton,London Borough of Sutton,21/12/2020,1309207,4.37 , WAITROSE 559,ANTI BAC WIPES,Resources Directorate,Miscellaneous Expenses,F620,
http://opendatacommunities.org/id/london-borough-council/sutton,London Borough of Sutton,15/12/2020,1309207,3.75 , ANTONIQUE DRY CLEANERS,LAUNDER TABLECLOTH,Resources Directorate,Miscellaneous Expenses,F620,
http://opendatacommunities.org/id/london-borough-council/sutton,London Borough of Sutton,03/12/2020,1309207,11.25 , SAINSBURYS 0038,ANTI BAC WIPES,Resources Directorate,Miscellaneous Expenses,F620,
http://opendatacommunities.org/id/london-borough-council/sutton,London Borough of Sutton,03/12/2020,1309207,10.45 , HTTP://WWW.PRIMATEL.CO,ROLLS FOR CHIP AND PIN MACHINE,Resources Directorate,Miscellaneous Expenses,F620,
http://opendatacommunities.org/id/london-borough-council/sutton,London Borough of Sutton,03/12/2020,1309207,3.75 , ANTONIQUE DRY CLEANERS,TABLECLOTH LAUNDERED,Resources Directorate,Miscellaneous Expenses,F620,
http://opendatacommunities.org/id/london-borough-council/sutton,London Borough of Sutton,03/12/2020,1309207,53.12 , DUNELM,ARTIFICIAL FLOWERS FOR MARRIAGE ROOM,Resources Directorate,Miscellaneous Expenses,F620,
http://opendatacommunities.org/id/london-borough-council/sutton,London Borough of Sutton,30/11/2020,1309207,19.66 , DGC WOODCOTE GREEN,PLANTS FOR GARDEN,Resources Directorate,Miscellaneous Expenses,F620,
http://opendatacommunities.org/id/london-borough-council/sutton,London Borough of Sutton,30/11/2020,1309207,75.00 , CROSSWAYS NURSERY,PLANTS FOR GARDEN,Resources Directorate,Miscellaneous Expenses,F620,
http://opendatacommunities.org/id/london-borough-council/sutton,London Borough of Sutton,28/11/2020,1309207,6.67 , TESCO STORE 3235,CHRISTMAS LIGHTS,Resources Directorate,Miscellaneous Expenses,F620,
http://opendatacommunities.org/id/london-borough-council/sutton,London Borough of Sutton,10/12/2020,1309207,75.00 , EB  ONLINE TRAINING MA,LGIU TRAINING COURSE - MANAGING HOMEWORK PERFORMANCE - STAFF TRAINING COURSE,Resources Directorate,Training - Course Fees,A520,
http://opendatacommunities.org/id/london-borough-council/sutton,London Borough of Sutton,14/12/2020,1309207,195.00 , SP   ESCAPE ROOM ONLIN,"DIVISIONAL BRIEFING ACTIVITY - VIRTUAL ESCAPE ROOM (13 COPIES, 15 EACH) TO BE DELIVERED AS PART OF END OF YEAR DIVISIONAL BRIEF",Resources Directorate,General Office Expenses,F235,
http://opendatacommunities.org/id/london-borough-council/sutton,London Borough of Sutton,15/12/2020,1309207,7.03 , MAILCHIMP    MONTHLY,WEB HOSTING,Resources Directorate,Fees - Computer Software,F384,
http://opendatacommunities.org/id/london-borough-council/sutton,London Borough of Sutton,14/12/2020,1309207,255.79 , MAILCHIMP    MONTHLY,WEB HOSTING,Resources Directorate,Fees - Computer Software,F384,
http://opendatacommunities.org/id/london-borough-council/sutton,London Borough of Sutton,24/12/2020,1309207,15.55 , MINICABIT,TRAVEL NEEDED FOR STAFF TO PERFORM POST DUTIES,Resources Directorate,Travelling and Subsistence Allowances,A530,
http://opendatacommunities.org/id/london-borough-council/sutton,London Borough of Sutton,21/12/2020,1309207,15.55 , MINICABIT,TRAVEL REQUESTED FOR STAFF TO COMPLETE POST,Resources Directorate,Travelling and Subsistence Allowances,A530,
http://opendatacommunities.org/id/london-borough-council/sutton,London Borough of Sutton,21/12/2020,1309207,21.32 , MINICABIT,TRAVEL REQUESTED FOR STAFF TO COMPLETE POST,Resources Directorate,Travelling and Subsistence Allowances,A530,
http://opendatacommunities.org/id/london-borough-council/sutton,London Borough of Sutton,21/12/2020,1309207,11.77 , MINICABIT,TRAVEL REQUESTED FOR STAFF TO COMPLETE POST,Resources Directorate,Travelling and Subsistence Allowances,A530,
http://opendatacommunities.org/id/london-borough-council/sutton,London Borough of Sutton,06/12/2020,1309207,6.74 , AMZNMKTPLACE,"SPLIT - VICLOON PLASTIC WALLETS A4, 5 PCS A4 ZIP LOCK BAGS DOCUMENT WALLET DOCUMENT FOLDERS PLASTIC POCKETS WITH ZIPPER FOR SCHOOL OFFICE HOMEWORK TRAVEL STORAGE BAGS (64.31%)",Resources Directorate,Personal Requisites,F106,
http://opendatacommunities.org/id/london-borough-council/sutton,London Borough of Sutton,06/12/2020,1309207,3.74 , AMZNMKTPLACE,BALANCING ENTRY AMOUNT (35.69%),Resources Directorate,Personal Requisites,F106,
http://opendatacommunities.org/id/london-borough-council/sutton,London Borough of Sutton,03/12/2020,1309207,"2,416.67 ", WWW.ICO.ORG.UK,DATA PROTECTION FEE FRENEWAL,Resources Directorate,Subscriptions - General,F450,
http://opendatacommunities.org/id/london-borough-council/sutton,London Borough of Sutton,26/12/2020,1309207,1.10 , GOOGLE  ADS5058737870,PUBLICITY ON GOOGLE,Resources Directorate,Corporate Publicity,F356,
http://opendatacommunities.org/id/london-borough-council/sutton,London Borough of Sutton,27/11/2020,1309207,0.76 , TRANSLATED.COM,FOREIGN EXCHANGE FEE FOR A TRANSACTION,Resources Directorate,Corporate Publicity,F356,
http://opendatacommunities.org/id/london-borough-council/sutton,London Borough of Sutton,22/12/2020,1309207,160.45 , MAILCHIMP,INCREASING CAPACITY OF INTERNAL/EXTERNAL NEWSLETTER DATABASE,Resources Directorate,Corporate Publicity,F356,
http://opendatacommunities.org/id/london-borough-council/sutton,London Borough of Sutton,10/12/2020,1309207,0.31 , MAILCHIMP,RENEWING SOCIAL MEDIA MARKETING TOOL SUBSCRIPTION,Resources Directorate,Corporate Publicity,F356,
http://opendatacommunities.org/id/london-borough-council/sutton,London Borough of Sutton,09/12/2020,1309207,15.00 , BUFFER PUBLISH PRO MO,SPLIT - PRO8 V1 - MONTHLY (132.86%),Resources Directorate,Corporate Publicity,F356,
http://opendatacommunities.org/id/london-borough-council/sutton,London Borough of Sutton,09/12/2020,1309207,(3.71), BUFFER PUBLISH PRO MO,BALANCING ENTRY AMOUNT (-98.58%),Resources Directorate,Corporate Publicity,F356,
http://opendatacommunities.org/id/london-borough-council/sutton,London Borough of Sutton,26/11/2020,1309207,19.56 , AMZNMKTPLACE,PURCHASE OF MEMORY CARD FOR RE-DEPLOYABLE CAMERA TO REPLACE BROKEN CARD,"Environment, Housing & Regeneration Directorate",Other Equipment - Purchase,F015,
http://opendatacommunities.org/id/london-borough-council/sutton,London Borough of Sutton,15/12/2020,1309207,435.94 , ARGOS LTD,CL&G,Resources Directorate,Grants,F473,
http://opendatacommunities.org/id/london-borough-council/sutton,London Borough of Sutton,10/12/2020,1309207,379.00 , CURRYS ONLINE,CL&G,Resources Directorate,Grants,F473,
http://opendatacommunities.org/id/london-borough-council/sutton,London Borough of Sutton,10/12/2020,1309207,365.00 , CURRYS ONLINE,CL&G,Resources Directorate,Grants,F473,
http://opendatacommunities.org/id/london-borough-council/sutton,London Borough of Sutton,10/12/2020,1309207,369.98 , ARGOS LTD,CL&G,Resources Directorate,Grants,F473,
http://opendatacommunities.org/id/london-borough-council/sutton,London Borough of Sutton,10/12/2020,1309207,309.95 , ARGOS LTD,CL&G,Resources Directorate,Grants,F473,
http://opendatacommunities.org/id/london-borough-council/sutton,London Borough of Sutton,09/12/2020,1309207,305.95 , ARGOS LTD,CL&G,Resources Directorate,Grants,F473,
http://opendatacommunities.org/id/london-borough-council/sutton,London Borough of Sutton,21/12/2020,1309207,175.95 , ARGOS LTD,CL&G,Resources Directorate,Grants,F473,
http://opendatacommunities.org/id/london-borough-council/sutton,London Borough of Sutton,21/12/2020,1309207,151.95 , ARGOS LTD,CL&G,Resources Directorate,Grants,F473,
http://opendatacommunities.org/id/london-borough-council/sutton,London Borough of Sutton,21/12/2020,1309207,296.95 , ARGOS LTD,CL&G,Resources Directorate,Grants,F473,
http://opendatacommunities.org/id/london-borough-council/sutton,London Borough of Sutton,21/12/2020,1309207,653.98 , CURRYS ONLINE,CL&G,Resources Directorate,Grants,F473,
http://opendatacommunities.org/id/london-borough-council/sutton,London Borough of Sutton,21/12/2020,1309207,179.99 , ARGOS LTD,CL&G,Resources Directorate,Grants,F473,
http://opendatacommunities.org/id/london-borough-council/sutton,London Borough of Sutton,18/12/2020,1309207,918.97 , CURRYS ONLINE,CL&G,Resources Directorate,Grants,F473,
http://opendatacommunities.org/id/london-borough-council/sutton,London Borough of Sutton,18/12/2020,1309207,(189.99), CURRYS ONLINE,CL&G,Resources Directorate,Grants,F473,
http://opendatacommunities.org/id/london-borough-council/sutton,London Borough of Sutton,24/12/2020,1309207,628.98 , CURRYS ONLINE,PURCHASE OF GOODS FOR CRISIS LOAN AND GRANT SCHEME,Resources Directorate,Grants,F473,
http://opendatacommunities.org/id/london-borough-council/sutton,London Borough of Sutton,24/12/2020,1309207,498.99 , ARGOS LTD,PURCHASE OF GOODS FOR CRISIS LOAN AND GRANT SCHEME,Resources Directorate,Grants,F473,
http://opendatacommunities.org/id/london-borough-council/sutton,London Borough of Sutton,24/12/2020,1309207,225.95 , ARGOS LTD,PURCHASE OF GOODS FOR CRISIS LOAN AND GRANT SCHEME,Resources Directorate,Grants,F473,
http://opendatacommunities.org/id/london-borough-council/sutton,London Borough of Sutton,22/12/2020,1309207,214.99 , CURRYS ONLINE,PURCHASE OF GOODS THROUGH CRISIS LOAN AND GRANT SCHEME,Resources Directorate,Grants,F473,
http://opendatacommunities.org/id/london-borough-council/sutton,London Borough of Sutton,22/12/2020,1309207,535.95 , ARGOS LTD,PURCHASE OF GOODS THROUGH CRISIS LOAN AND GRANT SCHEME,Resources Directorate,Grants,F473,
http://opendatacommunities.org/id/london-borough-council/sutton,London Borough of Sutton,22/12/2020,1309207,628.98 , CURRYS ONLINE,PURCHASE OF GOODS THROUGH CRISIS LOAN AND GRANT SCHEME,Resources Directorate,Grants,F473,
http://opendatacommunities.org/id/london-borough-council/sutton,London Borough of Sutton,22/12/2020,1309207,628.98 , CURRYS ONLINE,PURCHASE OF GOODS THROUGH CRISIS LOAN AND GRANT SCHEME,Resources Directorate,Grants,F473,
http://opendatacommunities.org/id/london-borough-council/sutton,London Borough of Sutton,22/12/2020,1309207,(628.98), CURRYS ONLINE,CREDIT NOTE FOR PURCHASE OF GOODS THROUGH CRISIS LOAN AND GRANT SCHEME,Resources Directorate,Grants,F473,
http://opendatacommunities.org/id/london-borough-council/sutton,London Borough of Sutton,21/12/2020,1309207,79.00 , ARGOS LTD,PURCHASE OF GOODS THROUGH CRISIS LOAN AND GRANT SCHEME,Resources Directorate,Grants,F473,
http://opendatacommunities.org/id/london-borough-council/sutton,London Borough of Sutton,21/12/2020,1309207,309.00 , CURRYS ONLINE,PURCHASE OF GOODS THROUGH CRISIS LOAN AND GRANT SCHEME,Resources Directorate,Grants,F473,
http://opendatacommunities.org/id/london-borough-council/sutton,London Borough of Sutton,21/12/2020,1309207,564.95 , ARGOS LTD,PURCHASE OF GOODS THROUGH CRISIS LOAN AND GRANT SCHEME,Resources Directorate,Grants,F473,
http://opendatacommunities.org/id/london-borough-council/sutton,London Borough of Sutton,21/12/2020,1309207,285.95 , ARGOS LTD,PURCHASE OF GOODS THROUGH CRISIS LOAN AND GRANT SCHEME,Resources Directorate,Grants,F473,
http://opendatacommunities.org/id/london-borough-council/sutton,London Borough of Sutton,09/12/2020,1309207,518.99 , CURRYS ONLINE,CL&G,Resources Directorate,Grants,F473,
http://opendatacommunities.org/id/london-borough-council/sutton,London Borough of Sutton,07/12/2020,1309207,264.00 , CURRYS ONLINE,CL&G,Resources Directorate,Grants,F473,
http://opendatacommunities.org/id/london-borough-council/sutton,London Borough of Sutton,07/12/2020,1309207,82.95 , ARGOS LTD,CL&G,Resources Directorate,Grants,F473,
http://opendatacommunities.org/id/london-borough-council/sutton,London Borough of Sutton,07/12/2020,1309207,(264.00), CURRYS ONLINE,CL&G,Resources Directorate,Grants,F473,
http://opendatacommunities.org/id/london-borough-council/sutton,London Borough of Sutton,04/12/2020,1309207,423.99 , CURRYS ONLINE,CL&G,Resources Directorate,Grants,F473,
http://opendatacommunities.org/id/london-borough-council/sutton,London Borough of Sutton,04/12/2020,1309207,285.95 , ARGOS LTD,CL&G,Resources Directorate,Grants,F473,
http://opendatacommunities.org/id/london-borough-council/sutton,London Borough of Sutton,03/12/2020,1309207,264.99 , CURRYS ONLINE,CL&G,Resources Directorate,Grants,F473,
http://opendatacommunities.org/id/london-borough-council/sutton,London Borough of Sutton,03/12/2020,1309207,98.95 , ARGOS LTD,CL&G,Resources Directorate,Grants,F473,
http://opendatacommunities.org/id/london-borough-council/sutton,London Borough of Sutton,09/12/2020,1309207,135.95 , ARGOS LTD,CL&G,Resources Directorate,Grants,F473,
http://opendatacommunities.org/id/london-borough-council/sutton,London Borough of Sutton,09/12/2020,1309207,179.99 , ARGOS LTD,CL&G,Resources Directorate,Grants,F473,
http://opendatacommunities.org/id/london-borough-council/sutton,London Borough of Sutton,07/12/2020,1309207,179.99 , ARGOS LTD,CL&G,Resources Directorate,Grants,F473,
http://opendatacommunities.org/id/london-borough-council/sutton,London Borough of Sutton,07/12/2020,1309207,165.95 , ARGOS LTD,CL&G,Resources Directorate,Grants,F473,
http://opendatacommunities.org/id/london-borough-council/sutton,London Borough of Sutton,07/12/2020,1309207,179.99 , ARGOS LTD,CL&G,Resources Directorate,Grants,F473,
http://opendatacommunities.org/id/london-borough-council/sutton,London Borough of Sutton,07/12/2020,1309207,285.95 , ARGOS LTD,CL&G,Resources Directorate,Grants,F473,
http://opendatacommunities.org/id/london-borough-council/sutton,London Borough of Sutton,07/12/2020,1309207,369.98 , ARGOS LTD,CL&G,Resources Directorate,Grants,F473,
http://opendatacommunities.org/id/london-borough-council/sutton,London Borough of Sutton,02/12/2020,1309207,(219.99), ARGOS LTD,CL&G,Resources Directorate,Grants,F473,
http://opendatacommunities.org/id/london-borough-council/sutton,London Borough of Sutton,01/12/2020,1309207,99.99 , ARGOS LTD,CL&G,Resources Directorate,Grants,F473,
http://opendatacommunities.org/id/london-borough-council/sutton,London Borough of Sutton,01/12/2020,1309207,215.95 , ARGOS LTD,CL&G,Resources Directorate,Grants,F473,
http://opendatacommunities.org/id/london-borough-council/sutton,London Borough of Sutton,01/12/2020,1309207,496.95 , ARGOS LTD,CL&G,Resources Directorate,Grants,F473,
http://opendatacommunities.org/id/london-borough-council/sutton,London Borough of Sutton,26/11/2020,1309207,79.00 , ARGOS LTD,CL&G,Resources Directorate,Grants,F473,
http://opendatacommunities.org/id/london-borough-council/sutton,London Borough of Sutton,26/11/2020,1309207,441.94 , ARGOS LTD,CL&G,Resources Directorate,Grants,F473,
http://opendatacommunities.org/id/london-borough-council/sutton,London Borough of Sutton,17/12/2020,1309207,383.99 , CURRYS ONLINE,CL&G,Resources Directorate,Grants,F473,
http://opendatacommunities.org/id/london-borough-council/sutton,London Borough of Sutton,17/12/2020,1309207,275.95 , ARGOS LTD,CL&G,Resources Directorate,Grants,F473,
http://opendatacommunities.org/id/london-borough-council/sutton,London Borough of Sutton,16/12/2020,1309207,289.98 , ARGOS LTD,CL&G,Resources Directorate,Grants,F473,
http://opendatacommunities.org/id/london-borough-council/sutton,London Borough of Sutton,16/12/2020,1309207,293.95 , ARGOS LTD,CL&G,Resources Directorate,Grants,F473,
http://opendatacommunities.org/id/london-borough-council/sutton,London Borough of Sutton,16/12/2020,1309207,314.00 , CURRYS ONLINE,CL&G,Resources Directorate,Grants,F473,
http://opendatacommunities.org/id/london-borough-council/sutton,London Borough of Sutton,15/12/2020,1309207,269.00 , CURRYS ONLINE,CL&G,Resources Directorate,Grants,F473,
http://opendatacommunities.org/id/london-borough-council/sutton,London Borough of Sutton,15/12/2020,1309207,618.98 , ARGOS LTD,CL&G,Resources Directorate,Grants,F473,
http://opendatacommunities.org/id/london-borough-council/sutton,London Borough of Sutton,15/12/2020,1309207,279.00 , CURRYS ONLINE,CL&G,Resources Directorate,Grants,F473,
http://opendatacommunities.org/id/london-borough-council/sutton,London Borough of Sutton,15/12/2020,1309207,308.94 , ARGOS LTD,CL&G,Resources Directorate,Grants,F473,
http://opendatacommunities.org/id/london-borough-council/sutton,London Borough of Sutton,30/11/2020,1309207,135.49 , WWW.CPAG.ORG.UK,"PURCHASE OF HOUSING BENEFIT AND COUNCIL TAX REDUCTION LEGISLATION, 33RD ED (INCLUDES SUPPLEMENT)",Resources Directorate,General Office Expenses,F235,
http://opendatacommunities.org/id/london-borough-council/sutton,London Borough of Sutton,08/12/2020,1309207,14.00 , GEN REGISTER OFFICE,"145080 - Death Certificate""",Resources Directorate,Legal Services,G049,
http://opendatacommunities.org/id/london-borough-council/sutton,London Borough of Sutton,30/11/2020,1309207,77.50 , ACCESS SUTTON,STORAGE NEEDED FOR CLIENT,Peoples Services Directorate,Personal Requisites,F106,
http://opendatacommunities.org/id/london-borough-council/sutton,London Borough of Sutton,21/12/2020,1309207,330.77 , LIGHT/MINI IN THE BOX,TEMPERATURE CHECKERS,Peoples Services Directorate,Health and Safety Equipment,F005,
http://opendatacommunities.org/id/london-borough-council/sutton,London Borough of Sutton,15/12/2020,1309207,591.67 , PAYPAL  EKINPTYLTD,CUSTOM TELEPHONE CASES,Peoples Services Directorate,General Office Expenses,F235,
http://opendatacommunities.org/id/london-borough-council/sutton,London Borough of Sutton,03/12/2020,1309207,142.35 , AGE CO IADVISORS,TO SUPPORT CLIENTS' INDEPENDENCE,Peoples Services Directorate,Miscellaneous Costs,G499,
http://opendatacommunities.org/id/london-borough-council/sutton,London Borough of Sutton,22/12/2020,1309207,11.00 , LBS REGISTRARS,DEATH CERT ATKINS,Peoples Services Directorate,Burials/Cremations,H303,
http://opendatacommunities.org/id/london-borough-council/sutton,London Borough of Sutton,02/12/2020,1309207,11.00 , LBSUTTON MOTO,DEATH CERT KIRBY,Peoples Services Directorate,Burials/Cremations,H303,
http://opendatacommunities.org/id/london-borough-council/sutton,London Borough of Sutton,03/12/2020,1309207,384.00 , WE BRAND IT,"WINDOW STICKERS, 130MM X 130MM FOR COVOD RESPONSE",Health and Wellbeing Directorate,Advertising/Publicity (non Staff),F240,
http://opendatacommunities.org/id/london-borough-council/sutton,London Borough of Sutton,26/11/2020,1309207,27.67 , TRANSLATED.COM,SOCIAL MEDIA CAMPAIGN TO TRANSLATE INFORMATION,Health and Wellbeing Directorate,Advertising/Publicity (non Staff),F240,
